Body Name,Body,Service Division Label,Service Division Code,Organisational Unit,Expenditure Category,Expenditure Code,CIPFA detailed expediture type,CIPFA detailed expediture code,Narrative,Date,Transaction number,Net Amount,Capital and Revenue,Supplier Name,Supplier ID
Chorley Borough Council,http://statistics.data.gov.uk/id/local-authority/30UE,Central Support Services,1009,Early Intervention,Works In Default,40199,Miscellaneous Expenses,5034,ADDRESS REDACTED - removal of all miscellaneous waste to also include a deep clean to the property. Cost: 825.53+Vat,01/05/2019,0137502,825.53,Revenue,3D Environmental Limited,76994
Chorley Borough Council,http://statistics.data.gov.uk/id/local-authority/30UE,Elections,1012,Policy & Governance,Rent/Hire Of Premises,20017,Premises Rents,5007,room hire for polling station 2 May 2019,17/05/2019,0137912,473.50,Revenue,Active Nation UK Ltd,17144
Chorley Borough Council,http://statistics.data.gov.uk/id/local-authority/30UE,Elections,1012,Policy & Governance,Rent/Hire Of Premises,20017,Premises Rents,5007,room hire for polling station 2 May 2019,17/05/2019,0137914,473.50,Revenue,Active Nation UK Ltd,17144
Chorley Borough Council,http://statistics.data.gov.uk/id/local-authority/30UE,Central Support Services,1009,Customer & Digital,Other Fees,40212,Miscellaneous Expenses,5034,EAD Rental 1GB,03/05/2019,0137217,334.42,Revenue,Adept Telecom PLC,77452
Chorley Borough Council,http://statistics.data.gov.uk/id/local-authority/30UE,Central Support Services,1009,Customer & Digital,Consultants` Fees,40077,Services,5027,Outstanding balance,15/05/2019,0137796,334.42,Revenue,Adept Telecom PLC,77452
Chorley Borough Council,http://statistics.data.gov.uk/id/local-authority/30UE,Capital,Capital,Business Development & Growth,Architects Fees,03022,Capital Expenditure,Capital,Tenant liaison service from April 2018 to September 2019,01/05/2019,0137583,"1,660.00",Capital,AEW Architects & Designers Ltd,66520
Chorley Borough Council,http://statistics.data.gov.uk/id/local-authority/30UE,Capital,Capital,Business Development & Growth,Architects Fees,03022,Capital Expenditure,Capital,Extra 20k budget allocated to order,29/05/2019,0138148,"2,365.00",Capital,AEW Architects & Designers Ltd,66520
Chorley Borough Council,http://statistics.data.gov.uk/id/local-authority/30UE,Central Support Services,1009,Policy & Governance,Legal Fees,40171,Miscellaneous Expenses,5034,Advice relating to traveller encampments on CBC owned land and the powers available,22/05/2019,0137986,750.00,Revenue,Alan Evans,16692
Chorley Borough Council,http://statistics.data.gov.uk/id/local-authority/30UE,Development Control,1091,Policy & Governance,Legal Fees,40171,Miscellaneous Expenses,5034,Advice relating to the prosecution against NAME REDACTED (BCN at ADDRESS REDACTED),22/05/2019,0137987,"1,250.00",Revenue,Alan Evans,16692
Chorley Borough Council,http://statistics.data.gov.uk/id/local-authority/30UE,Development Control,1091,Policy & Governance,Legal Fees,40171,Miscellaneous Expenses,5034,Advice subsequent to the Temporary Stop Notice at ADDRESS REDACTED,22/05/2019,0138020,"1,000.00",Revenue,Alan Evans,16692
Chorley Borough Council,http://statistics.data.gov.uk/id/local-authority/30UE,Unapportionable Central OHeads,1009,Customer & Digital,Bank Charges,40151,Miscellaneous Expenses,5034,add account fee,03/05/2019,0137662,10.60,Revenue,Allpay Net Ltd,17242
Chorley Borough Council,http://statistics.data.gov.uk/id/local-authority/30UE,Unapportionable Central OHeads,1009,Customer & Digital,Bank Charges,40151,Miscellaneous Expenses,5034,post office,03/05/2019,0137662,944.58,Revenue,Allpay Net Ltd,17242
Chorley Borough Council,http://statistics.data.gov.uk/id/local-authority/30UE,Unapportionable Central OHeads,1009,Customer & Digital,Bank Charges,40151,Miscellaneous Expenses,5034,paypoint,03/05/2019,0137662,522.92,Revenue,Allpay Net Ltd,17242
Chorley Borough Council,http://statistics.data.gov.uk/id/local-authority/30UE,Unapportionable Central OHeads,1009,Customer & Digital,Bank Charges,40151,Miscellaneous Expenses,5034,webconn,03/05/2019,0137662,48.82,Revenue,Allpay Net Ltd,17242
Chorley Borough Council,http://statistics.data.gov.uk/id/local-authority/30UE,Capital,Capital,Business Development & Growth,Main Contractor,03007,Capital Expenditure,Capital,Astey Park Chorley - External Lighting Consultancy Services (as set out in quotation received 5th No0vember 2018),01/05/2019,0137455,"1,281.00",Capital,Altitude Services Ltd,77719
Chorley Borough Council,http://statistics.data.gov.uk/id/local-authority/30UE,Democratic Represent and  Mgnt,1007,Customer & Digital,Supplies-Grounds Maintenance,40025,"Equipment, Furniture & Materia",5023,"3 - 6 tier beehive. 1400mm base, tiers 1200mm, 1000mm, 800mm, 590mm, 470mm. Black",15/05/2019,0137729,"2,226.00",Revenue,Amberol,64554
Chorley Borough Council,http://statistics.data.gov.uk/id/local-authority/30UE,Economic Development,1096,Business Development & Growth,Cleaning Materials,40019,"Equipment, Furniture & Materia",5023,Please supply cleaning materials as per e-mail,10/05/2019,0137805,291.03,Revenue,Amtoll Ltd,21738
Chorley Borough Council,http://statistics.data.gov.uk/id/local-authority/30UE,Development Control,1091,Policy & Governance,Car Leasing Payment,14100,Direct Employee Expenses,5001,,22/05/2019,0138021,"5,740.68",Revenue,Arnold Clark Finance Ltd,20685
Chorley Borough Council,http://statistics.data.gov.uk/id/local-authority/30UE,Development Control,1091,Policy & Governance,Car Leasing Payment,14100,Direct Employee Expenses,5001,vat,22/05/2019,0138021,514.60,Revenue,Arnold Clark Finance Ltd,20685
Chorley Borough Council,http://statistics.data.gov.uk/id/local-authority/30UE,Planning Policy,1092,Policy & Governance,Car Leasing Payment,14100,Direct Employee Expenses,5001,"Car Lease NAME REDACTED, Peugeot 3008 1.2L Pure Tech 130 Allure 5dr EAT8, Magnetic Blue,With extra features",29/05/2019,0138150,"2,727.00",Revenue,Arnold Clark Finance Ltd,20685
Chorley Borough Council,http://statistics.data.gov.uk/id/local-authority/30UE,Unapportionable Central OHeads,1009,Policy & Governance,Car Leasing Payment,14100,Direct Employee Expenses,5001,"Car Lease NAME REDACTED Nissan Qashqai 1.5 DCI 115 Tekna 5 dr, Gun Metal, 3 years, 14000 miles P/A",01/05/2019,0137252,"3,423.19",Revenue,Arval UK Ltd,18240
Chorley Borough Council,http://statistics.data.gov.uk/id/local-authority/30UE,Unapportionable Central OHeads,1009,Policy & Governance,Car Leasing Payment,14100,Direct Employee Expenses,5001,vat,01/05/2019,0137252,283.83,Revenue,Arval UK Ltd,18240
Chorley Borough Council,http://statistics.data.gov.uk/id/local-authority/30UE,Unapportionable Central OHeads,1009,Policy & Governance,Car Leasing Payment,14100,Direct Employee Expenses,5001,"Car Lease NAME REDACTED Mercedes-Benz,  A180 AMG, Line Premium 5 DR Polar White, 3 years, 8000 miles P/A ",01/05/2019,0137253,"3,037.10",Revenue,Arval UK Ltd,18240
Chorley Borough Council,http://statistics.data.gov.uk/id/local-authority/30UE,Unapportionable Central OHeads,1009,Policy & Governance,Car Leasing Payment,14100,Direct Employee Expenses,5001,vat,01/05/2019,0137253,263.45,Revenue,Arval UK Ltd,18240
Chorley Borough Council,http://statistics.data.gov.uk/id/local-authority/30UE,Business Support,1095,Policy & Governance,Car Leasing Payment,14100,Direct Employee Expenses,5001,"Car Lease NAME REDACTED, FORD Focus, 1.5 120 ST-Line 5 Dr Hatchback, Diesel, Chrome Blue, 3 Yr, 10,000 miles P/A",01/05/2019,0137274,"1,945.86",Revenue,Arval UK Ltd,18240
Chorley Borough Council,http://statistics.data.gov.uk/id/local-authority/30UE,Business Support,1095,Policy & Governance,Car Leasing Payment,14100,Direct Employee Expenses,5001,vat,01/05/2019,0137274,171.27,Revenue,Arval UK Ltd,18240
Chorley Borough Council,http://statistics.data.gov.uk/id/local-authority/30UE,Capital,Capital,Early Intervention,Grants,03002,Capital Expenditure,Capital,ADDRESS REDACTED  ,10/05/2019,0137826,"7,500.00",Capital,Barlow Construct & Renovation,16609
Chorley Borough Council,http://statistics.data.gov.uk/id/local-authority/30UE,Central Support Services,1009,Business Development & Growth,Professional Fees,40063,Services,5027,Works as agreed with NAME REDACTED on 04/10/2018,10/05/2019,0137764,"2,649.00",Revenue,BDP,77191
Chorley Borough Council,http://statistics.data.gov.uk/id/local-authority/30UE,Homelessness,1075,Early Intervention,Laundry,40042,"Clothing, Uniforms and Laundry",5025,"Cotswold Supported Housing 12 month laundry services  01/04/19 to 31/03/20 Total amount 6000",17/05/2019,0137938,406.24,Revenue,Berendsen UK Ltd,20799
Chorley Borough Council,http://statistics.data.gov.uk/id/local-authority/30UE,Homelessness,1075,Early Intervention,Laundry,40042,"Clothing, Uniforms and Laundry",5025,"Cotswold Supported Housing 12 month laundry services  01/04/19 to 31/03/20 Total amount 6000",31/05/2019,0138069,374.74,Revenue,Berendsen UK Ltd,20799
Chorley Borough Council,http://statistics.data.gov.uk/id/local-authority/30UE,Homelessness,1075,Early Intervention,Laundry,40042,"Clothing, Uniforms and Laundry",5025,"Cotswold Supported Housing 12 month laundry services  01/04/19 to 31/03/20 Total amount 6000",31/05/2019,0138182,405.55,Revenue,Berendsen UK Ltd,20799
Chorley Borough Council,http://statistics.data.gov.uk/id/local-authority/30UE,Unapportionable Central OHeads,1009,Policy & Governance,Exhibitions & Special Events,40158,Miscellaneous Expenses,5034,Chorley 10k Backdrop,10/05/2019,0137587,355.00,Revenue,Blackpool Signs & Graphics Ltd,78008
Chorley Borough Council,http://statistics.data.gov.uk/id/local-authority/30UE,Capital,Capital,Business Development & Growth,Other Contractor,03012,Capital Expenditure,Capital,CNS Lead at Market Walk,10/05/2019,0137731,"5,705.04",Capital,British Telecom,17189
Chorley Borough Council,http://statistics.data.gov.uk/id/local-authority/30UE,Central Support Services,1009,Customer & Digital,Telephones - Rentals,40083,Communication and Computing,5028,recurring,15/05/2019,0137686,"3,201.99",Revenue,British Telecommunications Plc,17131
Chorley Borough Council,http://statistics.data.gov.uk/id/local-authority/30UE,Central Support Services,1009,Customer & Digital,Telephones - Other,40085,Communication and Computing,5028,one off,15/05/2019,0137686,184.00,Revenue,British Telecommunications Plc,17131
Chorley Borough Council,http://statistics.data.gov.uk/id/local-authority/30UE,Central Support Services,1009,Customer & Digital,Telephones - Calls,40084,Communication and Computing,5028,usage,15/05/2019,0137686,262.59,Revenue,British Telecommunications Plc,17131
Chorley Borough Council,http://statistics.data.gov.uk/id/local-authority/30UE,Business Support,1095,Early Intervention,Telephones - Rentals,40083,Communication and Computing,5028,reg charge,15/05/2019,0137915,162.77,Revenue,British Telecommunications Plc,17131
Chorley Borough Council,http://statistics.data.gov.uk/id/local-authority/30UE,Business Support,1095,Early Intervention,Telephones - Rentals,40083,Communication and Computing,5028,one off,15/05/2019,0137915,280.00,Revenue,British Telecommunications Plc,17131
Chorley Borough Council,http://statistics.data.gov.uk/id/local-authority/30UE,Business Support,1095,Early Intervention,Telephones - Rentals,40083,Communication and Computing,5028,usage,15/05/2019,0137915,1.50,Revenue,British Telecommunications Plc,17131
Chorley Borough Council,http://statistics.data.gov.uk/id/local-authority/30UE,Business Support,1095,Early Intervention,Telephones - Rentals,40083,Communication and Computing,5028,LATE FEE,15/05/2019,0137915,40.00,Revenue,British Telecommunications Plc,17131
Chorley Borough Council,http://statistics.data.gov.uk/id/local-authority/30UE,Capital,Capital,Business Development & Growth,Other Contractor,03012,Capital Expenditure,Capital,TELEPHONE NUMBER REDACTED,17/05/2019,0137966,281.74,Capital,British Telecommunications Plc,17131
Chorley Borough Council,http://statistics.data.gov.uk/id/local-authority/30UE,Capital,Capital,Business Development & Growth,Other Contractor,03012,Capital Expenditure,Capital,The supply of copper to Market Walk Extension with 20 pair for M&S and The Cinema and 5Pair for the remainder of units.,01/05/2019,0137501,"5,705.04",Capital,BT Business Direct Ltd,63990
Chorley Borough Council,http://statistics.data.gov.uk/id/local-authority/30UE,Service Management & Support,1009,Customer & Digital,Supplies-Grounds Maintenance,40025,"Equipment, Furniture & Materia",5023,"as per invoice 27557 dated 28/03/2019 Bengal Street - empty interceptor",15/05/2019,0137017,325.00,Revenue,C J Lyon,16579
Chorley Borough Council,http://statistics.data.gov.uk/id/local-authority/30UE,Service Management & Support,1009,Business Development & Growth,Vehicles and Plant Maintenance,30045,Direct Transport Costs,5016,"Investigate fault with rear sensor.Replace rat damage cables and replace ram sensor and function box Labour",08/05/2019,0137645,939.36,Revenue,C P Davidson & Sons Ltd,21093
Chorley Borough Council,http://statistics.data.gov.uk/id/local-authority/30UE,Service Management & Support,1009,Customer & Digital,Vehicles and Plant Maintenance,30045,Direct Transport Costs,5016,"RV14 DVBTacho re calibration Repair tacho",03/05/2019,0137657,345.06,Revenue,C P Davidson & Sons Ltd,21093
Chorley Borough Council,http://statistics.data.gov.uk/id/local-authority/30UE,Homelessness,1075,Early Intervention,Grants To Other Organisations,40127,Grants and Subscriptions,5031,"Provision of Accommodation Finding Service & Resettlement ServiceFor Period 01/01/2019 - 31/03/2019",01/05/2019,0137146,"7,286.50",Revenue,Calico Enterprise,73338
Chorley Borough Council,http://statistics.data.gov.uk/id/local-authority/30UE,Homelessness,1075,Early Intervention,Grants To Other Organisations,40127,Grants and Subscriptions,5031,"Provision of Accommodation Finding Service & Resettlement ServiceFor Period 01/10/2018 - 31/12/2018",22/05/2019,0138022,"7,286.50",Revenue,Calico Enterprise,73338
Chorley Borough Council,http://statistics.data.gov.uk/id/local-authority/30UE,Homelessness,1075,Early Intervention,Furniture - Purchase,40012,"Equipment, Furniture & Materia",5023,Furnishing of 4 Syrian Refugee Properties in Chorley 12764.00 + VAT Total = 15316.80,29/05/2019,0138052,"12,764.00",Revenue,Calico Enterprise,73338
Chorley Borough Council,http://statistics.data.gov.uk/id/local-authority/30UE,Homelessness,1075,Early Intervention,Furniture - Purchase,40012,"Equipment, Furniture & Materia",5023, With regards to invoice: 000098 SINV20/00001277 Washing Machine ADDRESS REDACTED 340.00 + VAT: 68.00,31/05/2019,0138146,340.00,Revenue,Calico Enterprise,73338
Chorley Borough Council,http://statistics.data.gov.uk/id/local-authority/30UE,Corporate Management,1008,Customer & Digital,Clinical Waste Collection,50007,Private Contractors,5042,Clinical waste collection and disposal service to residential properties in Chorley Borough (1 April 2019 to March 2020).,15/05/2019,0137387,712.87,Revenue,Cannon Hygiene Limited,18158
Chorley Borough Council,http://statistics.data.gov.uk/id/local-authority/30UE,Central Support Services,1009,Customer & Digital,IT Software - Annual Licences,40101,Communication and Computing,5028,"Revenues and Benefits main solution 32,000 plus annual licence 6,000 plus e claim e cic annual charge 5,000",10/05/2019,0137348,"43,000.00",Revenue,Capita Business Services Ltd,17151
Chorley Borough Council,http://statistics.data.gov.uk/id/local-authority/30UE,Housing Benefit Administration,1077,Customer & Digital,Computer Software-Additional,40102,Communication and Computing,5028,"DWP LADS IT - DWP Funded: CIS Automation, API, PSCS, UC, SHBE CR001, SHBE CR002",15/05/2019,0137909,"5,893.37",Revenue,Capita Business Services Ltd,17151
Chorley Borough Council,http://statistics.data.gov.uk/id/local-authority/30UE,Central Support Services,1009,Customer & Digital,Miscellaneous Expenses,40200,Miscellaneous Expenses,5034,CCTV survey,31/05/2019,0138173,990.00,Revenue,CCTV Services Limited,71330
Chorley Borough Council,http://statistics.data.gov.uk/id/local-authority/30UE,Elections,1012,Policy & Governance,Rent/Hire Of Premises,20017,Premises Rents,5007,room hire for polling staton 2 May,17/05/2019,0137942,250.00,Revenue,Charnock Richard Scouts & Guides,22314
Chorley Borough Council,http://statistics.data.gov.uk/id/local-authority/30UE,Parking Services,1066,Business Development & Growth,External Contractors,50008,Private Contractors,5042,period mar 2019,03/05/2019,0137602,823.53,Revenue,Chipside Ltd,22063
Chorley Borough Council,http://statistics.data.gov.uk/id/local-authority/30UE,Parking Services,1066,Business Development & Growth,External Contractors,50008,Private Contractors,5042,"Processing Services for period 01.04.2019-31.03.2020, Notices, Auto payments, Evidence, Tphone Assist",29/05/2019,0138024,698.40,Revenue,Chipside Ltd,22063
Chorley Borough Council,http://statistics.data.gov.uk/id/local-authority/30UE,Corporate Management,1008,Customer & Digital,Taxi Testing & Vehicle Safety Report,40234,Services,5027,mot`s April,10/05/2019,0137733,"1,151.85",Revenue,Chorley Autocare Ltd,17110
Chorley Borough Council,http://statistics.data.gov.uk/id/local-authority/30UE,Corporate Management,1008,Customer & Digital,Taxi Testing & Vehicle Safety Report,40234,Services,5027,taxi tests,10/05/2019,0137733,179.55,Revenue,Chorley Autocare Ltd,17110
Chorley Borough Council,http://statistics.data.gov.uk/id/local-authority/30UE,Economic Development,1096,Chief Executive,Miscellaneous Expenses,40200,Miscellaneous Expenses,5034,Refreshment Voucher for Timewells Coach Visit,24/05/2019,0138098,5.00,Revenue,Chorley BC Petty Cash,16301
Chorley Borough Council,http://statistics.data.gov.uk/id/local-authority/30UE,Central Support Services,1009,Chief Executive,Community Develop Initiatives,40185,Miscellaneous Expenses,5034,Milk,24/05/2019,0138098,1.00,Revenue,Chorley BC Petty Cash,16301
Chorley Borough Council,http://statistics.data.gov.uk/id/local-authority/30UE,Central Support Services,1009,Chief Executive,Community Develop Initiatives,40185,Miscellaneous Expenses,5034,Biscuits - Part of receipt with VAT,24/05/2019,0138098,1.32,Revenue,Chorley BC Petty Cash,16301
Chorley Borough Council,http://statistics.data.gov.uk/id/local-authority/30UE,Central Support Services,1009,Chief Executive,Community Develop Initiatives,40185,Miscellaneous Expenses,5034,Biscuits - Part of receipt without VAT,24/05/2019,0138098,3.97,Revenue,Chorley BC Petty Cash,16301
Chorley Borough Council,http://statistics.data.gov.uk/id/local-authority/30UE,Unapportionable Central OHeads,1009,Chief Executive,Tools & Equipment - Purchase,40003,"Equipment, Furniture & Materia",5023,Light Bulb,24/05/2019,0138098,0.83,Revenue,Chorley BC Petty Cash,16301
Chorley Borough Council,http://statistics.data.gov.uk/id/local-authority/30UE,Democratic Represent and  Mgnt,1007,Chief Executive,Use Of Transport - Mayoral Car,30015,Transport Recharges,5017,Car Wash,24/05/2019,0138098,4.17,Revenue,Chorley BC Petty Cash,16301
Chorley Borough Council,http://statistics.data.gov.uk/id/local-authority/30UE,Unapportionable Central OHeads,1009,Chief Executive,Tools & Equipment - Purchase,40003,"Equipment, Furniture & Materia",5023,Light Bulbs,24/05/2019,0138098,13.90,Revenue,Chorley BC Petty Cash,16301
Chorley Borough Council,http://statistics.data.gov.uk/id/local-authority/30UE,Unapportionable Central OHeads,1009,Chief Executive,Uniforms,40039,"Clothing, Uniforms and Laundry",5025,Formal Shirts,24/05/2019,0138098,12.00,Revenue,Chorley BC Petty Cash,16301
Chorley Borough Council,http://statistics.data.gov.uk/id/local-authority/30UE,Unapportionable Central OHeads,1009,Chief Executive,Cleaning Materials,40019,"Equipment, Furniture & Materia",5023,Sterilising Fluid,24/05/2019,0138098,0.74,Revenue,Chorley BC Petty Cash,16301
Chorley Borough Council,http://statistics.data.gov.uk/id/local-authority/30UE,Unapportionable Central OHeads,1009,Chief Executive,Tools & Equipment - Purchase,40003,"Equipment, Furniture & Materia",5023,Door Handles & Door Wedges,24/05/2019,0138098,3.49,Revenue,Chorley BC Petty Cash,16301
Chorley Borough Council,http://statistics.data.gov.uk/id/local-authority/30UE,Central Support Services,1009,Chief Executive,Play Events,40181,Miscellaneous Expenses,5034,Winter Playday Refreshments (Farmfoods),24/05/2019,0138098,17.29,Revenue,Chorley BC Petty Cash,16301
Chorley Borough Council,http://statistics.data.gov.uk/id/local-authority/30UE,Central Support Services,1009,Chief Executive,Play Events,40181,Miscellaneous Expenses,5034,Winter Playday Refreshments (B&M Bargains),24/05/2019,0138098,2.18,Revenue,Chorley BC Petty Cash,16301
Chorley Borough Council,http://statistics.data.gov.uk/id/local-authority/30UE,Democratic Represent and  Mgnt,1007,Chief Executive,Use Of Transport - Mayoral Car,30015,Transport Recharges,5017,Car Wash,24/05/2019,0138098,8.00,Revenue,Chorley BC Petty Cash,16301
Chorley Borough Council,http://statistics.data.gov.uk/id/local-authority/30UE,Democratic Represent and  Mgnt,1007,Chief Executive,Use Of Transport - Mayoral Car,30015,Transport Recharges,5017,Mayoral car wash,24/05/2019,0138098,6.00,Revenue,Chorley BC Petty Cash,16301
Chorley Borough Council,http://statistics.data.gov.uk/id/local-authority/30UE,Unapportionable Central OHeads,1009,Chief Executive,Refreshments,40036,Catering,5024,Milk,24/05/2019,0138098,1.48,Revenue,Chorley BC Petty Cash,16301
Chorley Borough Council,http://statistics.data.gov.uk/id/local-authority/30UE,Unapportionable Central OHeads,1009,Chief Executive,Cleaning Materials,40019,"Equipment, Furniture & Materia",5023,Dishwasher Tablets,24/05/2019,0138098,13.32,Revenue,Chorley BC Petty Cash,16301
Chorley Borough Council,http://statistics.data.gov.uk/id/local-authority/30UE,Democratic Represent and  Mgnt,1007,Chief Executive,Member Development Programme,17007,Indirect Employee Expenses,5002,Cake,24/05/2019,0138098,2.75,Revenue,Chorley BC Petty Cash,16301
Chorley Borough Council,http://statistics.data.gov.uk/id/local-authority/30UE,Unapportionable Central OHeads,1009,Chief Executive,Exhibitions & Special Events,40158,Miscellaneous Expenses,5034,Biscuits,24/05/2019,0138098,4.78,Revenue,Chorley BC Petty Cash,16301
Chorley Borough Council,http://statistics.data.gov.uk/id/local-authority/30UE,Economic Development,1096,Chief Executive,Tolls - General Market,60145,Customer & Client Receipts,5064,Woodchats voucher for coach visits,24/05/2019,0138098,15.00,Revenue,Chorley BC Petty Cash,16301
Chorley Borough Council,http://statistics.data.gov.uk/id/local-authority/30UE,Economic Development,1096,Chief Executive,Miscellaneous Expenses,40200,Miscellaneous Expenses,5034,Woodchat voucher for Bibby coaches,24/05/2019,0138098,5.00,Revenue,Chorley BC Petty Cash,16301
Chorley Borough Council,http://statistics.data.gov.uk/id/local-authority/30UE,Democratic Represent and  Mgnt,1007,Chief Executive,Use Of Transport - Mayoral Car,30015,Transport Recharges,5017,Car Wash,24/05/2019,0138098,6.00,Revenue,Chorley BC Petty Cash,16301
Chorley Borough Council,http://statistics.data.gov.uk/id/local-authority/30UE,Democratic Represent and  Mgnt,1007,Chief Executive,Use Of Transport - Mayoral Car,30015,Transport Recharges,5017,Car Wash,24/05/2019,0138098,6.80,Revenue,Chorley BC Petty Cash,16301
Chorley Borough Council,http://statistics.data.gov.uk/id/local-authority/30UE,Unapportionable Central OHeads,1009,Chief Executive,Tools & Equipment - Purchase,40003,"Equipment, Furniture & Materia",5023,Tools/Equipment,24/05/2019,0138098,0.83,Revenue,Chorley BC Petty Cash,16301
Chorley Borough Council,http://statistics.data.gov.uk/id/local-authority/30UE,Democratic Represent and  Mgnt,1007,Chief Executive,Tools & Equipment - Purchase,40003,"Equipment, Furniture & Materia",5023,Biscuits,24/05/2019,0138098,8.05,Revenue,Chorley BC Petty Cash,16301
Chorley Borough Council,http://statistics.data.gov.uk/id/local-authority/30UE,Central Support Services,1009,Chief Executive,Miscellaneous Expenses,40200,Miscellaneous Expenses,5034,Cooking materials,24/05/2019,0138098,3.33,Revenue,Chorley BC Petty Cash,16301
Chorley Borough Council,http://statistics.data.gov.uk/id/local-authority/30UE,Central Support Services,1009,Chief Executive,Miscellaneous Expenses,40200,Miscellaneous Expenses,5034,Cooking materials,24/05/2019,0138098,2.07,Revenue,Chorley BC Petty Cash,16301
Chorley Borough Council,http://statistics.data.gov.uk/id/local-authority/30UE,Democratic Represent and  Mgnt,1007,Chief Executive,Fixtures & Fittings - Purchase,20027,Fixtures and Fittings,5010,Halogen Bulbs,24/05/2019,0138098,4.17,Revenue,Chorley BC Petty Cash,16301
Chorley Borough Council,http://statistics.data.gov.uk/id/local-authority/30UE,Unapportionable Central OHeads,1009,Chief Executive,Uniforms,40039,"Clothing, Uniforms and Laundry",5025,New Blouse,24/05/2019,0138098,12.50,Revenue,Chorley BC Petty Cash,16301
Chorley Borough Council,http://statistics.data.gov.uk/id/local-authority/30UE,Unapportionable Central OHeads,1009,Chief Executive,Refreshments,40036,Catering,5024,Sugar,24/05/2019,0138098,0.50,Revenue,Chorley BC Petty Cash,16301
Chorley Borough Council,http://statistics.data.gov.uk/id/local-authority/30UE,Unapportionable Central OHeads,1009,Chief Executive,Refreshments,40036,Catering,5024,Juice,24/05/2019,0138098,0.74,Revenue,Chorley BC Petty Cash,16301
Chorley Borough Council,http://statistics.data.gov.uk/id/local-authority/30UE,Unapportionable Central OHeads,1009,Chief Executive,Refreshments,40036,Catering,5024,Biscuits,24/05/2019,0138098,2.00,Revenue,Chorley BC Petty Cash,16301
Chorley Borough Council,http://statistics.data.gov.uk/id/local-authority/30UE,Parking Services,1066,Chief Executive,Miscellaneous Expenses,40200,Miscellaneous Expenses,5034,Postage costs to return item,24/05/2019,0138098,4.55,Revenue,Chorley BC Petty Cash,16301
Chorley Borough Council,http://statistics.data.gov.uk/id/local-authority/30UE,Parking Services,1066,Chief Executive,Miscellaneous Expenses,40200,Miscellaneous Expenses,5034,Postage costs to return item,24/05/2019,0138098,4.55,Revenue,Chorley BC Petty Cash,16301
Chorley Borough Council,http://statistics.data.gov.uk/id/local-authority/30UE,Unapportionable Central OHeads,1009,Chief Executive,Tools & Equipment - Purchase,40003,"Equipment, Furniture & Materia",5023,Keys cut,24/05/2019,0138098,8.33,Revenue,Chorley BC Petty Cash,16301
Chorley Borough Council,http://statistics.data.gov.uk/id/local-authority/30UE,Unapportionable Central OHeads,1009,Chief Executive,Refreshments,40036,Catering,5024,Milk,24/05/2019,0138098,1.48,Revenue,Chorley BC Petty Cash,16301
Chorley Borough Council,http://statistics.data.gov.uk/id/local-authority/30UE,Unapportionable Central OHeads,1009,Chief Executive,Cleaning Materials,40019,"Equipment, Furniture & Materia",5023,Soap,24/05/2019,0138098,3.33,Revenue,Chorley BC Petty Cash,16301
Chorley Borough Council,http://statistics.data.gov.uk/id/local-authority/30UE,Central Support Services,1009,Chief Executive,Sports Development Initiatives,40186,Miscellaneous Expenses,5034,Keys cut,24/05/2019,0138098,5.83,Revenue,Chorley BC Petty Cash,16301
Chorley Borough Council,http://statistics.data.gov.uk/id/local-authority/30UE,Democratic Represent and  Mgnt,1007,Chief Executive,Use Of Transport - Mayoral Car,30015,Transport Recharges,5017,Mayoral car wash,24/05/2019,0138098,6.00,Revenue,Chorley BC Petty Cash,16301
Chorley Borough Council,http://statistics.data.gov.uk/id/local-authority/30UE,Economic Development,1096,Chief Executive,Miscellaneous Expenses,40200,Miscellaneous Expenses,5034,Woodchats voucher for coach visits,24/05/2019,0138098,5.00,Revenue,Chorley BC Petty Cash,16301
Chorley Borough Council,http://statistics.data.gov.uk/id/local-authority/30UE,Unapportionable Central OHeads,1009,Chief Executive,Uniforms,40039,"Clothing, Uniforms and Laundry",5025,White blouse (Lancastrian uniform) x2,24/05/2019,0138098,10.00,Revenue,Chorley BC Petty Cash,16301
Chorley Borough Council,http://statistics.data.gov.uk/id/local-authority/30UE,Democratic Represent and  Mgnt,1007,Chief Executive,General Subscriptions,40146,Grants and Subscriptions,5031,Domain renewal - AstleyPark.co.uk,24/05/2019,0138098,6.99,Revenue,Chorley BC Petty Cash,16301
Chorley Borough Council,http://statistics.data.gov.uk/id/local-authority/30UE,Unapportionable Central OHeads,1009,Chief Executive,Stationery,40050,"Printing, Stationery & General",5026,Printer Ink for WYSC,24/05/2019,0138098,22.50,Revenue,Chorley BC Petty Cash,16301
Chorley Borough Council,http://statistics.data.gov.uk/id/local-authority/30UE,Tourism,1039,Chief Executive,Miscellaneous Expenses,40200,Miscellaneous Expenses,5034,Flower show receipt,24/05/2019,0138098,4.16,Revenue,Chorley BC Petty Cash,16301
Chorley Borough Council,http://statistics.data.gov.uk/id/local-authority/30UE,Unapportionable Central OHeads,1009,Chief Executive,Refreshments,40036,Catering,5024,Milk,24/05/2019,0138098,1.00,Revenue,Chorley BC Petty Cash,16301
Chorley Borough Council,http://statistics.data.gov.uk/id/local-authority/30UE,Unapportionable Central OHeads,1009,Chief Executive,Refreshments,40036,Catering,5024,Sugar,24/05/2019,0138098,1.00,Revenue,Chorley BC Petty Cash,16301
Chorley Borough Council,http://statistics.data.gov.uk/id/local-authority/30UE,Economic Development,1096,Chief Executive,Miscellaneous Expenses,40200,Miscellaneous Expenses,5034,G Line Coach visit to Chorley markets,24/05/2019,0138098,5.00,Revenue,Chorley BC Petty Cash,16301
Chorley Borough Council,http://statistics.data.gov.uk/id/local-authority/30UE,Democratic Represent and  Mgnt,1007,Chief Executive,Exhibitions & Special Events,40158,Miscellaneous Expenses,5034,Red plastic wall plugs,24/05/2019,0138098,2.99,Revenue,Chorley BC Petty Cash,16301
Chorley Borough Council,http://statistics.data.gov.uk/id/local-authority/30UE,Democratic Represent and  Mgnt,1007,Chief Executive,Exhibitions & Special Events,40158,Miscellaneous Expenses,5034,Johnsons paint,24/05/2019,0138098,8.33,Revenue,Chorley BC Petty Cash,16301
Chorley Borough Council,http://statistics.data.gov.uk/id/local-authority/30UE,Unapportionable Central OHeads,1009,Chief Executive,Uniforms,40039,"Clothing, Uniforms and Laundry",5025,Uniform,24/05/2019,0138098,5.83,Revenue,Chorley BC Petty Cash,16301
Chorley Borough Council,http://statistics.data.gov.uk/id/local-authority/30UE,Unapportionable Central OHeads,1009,Chief Executive,Refreshments,40036,Catering,5024,Milk,24/05/2019,0138098,2.96,Revenue,Chorley BC Petty Cash,16301
Chorley Borough Council,http://statistics.data.gov.uk/id/local-authority/30UE,Unapportionable Central OHeads,1009,Chief Executive,Cleaning Materials,40019,"Equipment, Furniture & Materia",5023,Dishwasher Tablets,24/05/2019,0138098,14.98,Revenue,Chorley BC Petty Cash,16301
Chorley Borough Council,http://statistics.data.gov.uk/id/local-authority/30UE,Unapportionable Central OHeads,1009,Chief Executive,Refreshments,40036,Catering,5024,Milk,24/05/2019,0138098,2.00,Revenue,Chorley BC Petty Cash,16301
Chorley Borough Council,http://statistics.data.gov.uk/id/local-authority/30UE,Elections,1012,Chief Executive,Tools & Equipment - Purchase,40003,"Equipment, Furniture & Materia",5023,Tape and numbers for ballot boxes,24/05/2019,0138098,5.21,Revenue,Chorley BC Petty Cash,16301
Chorley Borough Council,http://statistics.data.gov.uk/id/local-authority/30UE,Democratic Represent and  Mgnt,1007,Chief Executive,Use Of Transport - Mayoral Car,30015,Transport Recharges,5017,Mayoral car wash,24/05/2019,0138098,6.00,Revenue,Chorley BC Petty Cash,16301
Chorley Borough Council,http://statistics.data.gov.uk/id/local-authority/30UE,Unapportionable Central OHeads,1009,Chief Executive,Tools & Equipment - Purchase,40003,"Equipment, Furniture & Materia",5023,Keys/tools and equipment,24/05/2019,0138098,10.00,Revenue,Chorley BC Petty Cash,16301
Chorley Borough Council,http://statistics.data.gov.uk/id/local-authority/30UE,Unapportionable Central OHeads,1009,Chief Executive,Tools & Equipment - Purchase,40003,"Equipment, Furniture & Materia",5023,Keys/tools and equipment,24/05/2019,0138098,13.33,Revenue,Chorley BC Petty Cash,16301
Chorley Borough Council,http://statistics.data.gov.uk/id/local-authority/30UE,Democratic Represent and  Mgnt,1007,Chief Executive,Tools & Equipment - Purchase,40003,"Equipment, Furniture & Materia",5023,Keys cut Astley Hall,24/05/2019,0138098,15.00,Revenue,Chorley BC Petty Cash,16301
Chorley Borough Council,http://statistics.data.gov.uk/id/local-authority/30UE,Unapportionable Central OHeads,1009,Policy & Governance,Processional Routes,40177,Miscellaneous Expenses,5034,Fee for playing at the Mayor`s Civic Sunday on Sunday 19th May 2019.,22/05/2019,0138040,400.00,Revenue,Chorley Pipe Band,21576
Chorley Borough Council,http://statistics.data.gov.uk/id/local-authority/30UE,Central Support Services,1009,Early Intervention,Children's Activities,40188,Miscellaneous Expenses,5034,"Lancashire Breaktime provision for respite activities January 2019144 hours claimed at  9.46 per hour",08/05/2019,0137566,"1,362.24",Revenue,Chorley Youth Zone,77339
Chorley Borough Council,http://statistics.data.gov.uk/id/local-authority/30UE,Central Support Services,1009,Early Intervention,Children's Activities,40188,Miscellaneous Expenses,5034,Lancashire Breaktime provision for respite activities Feb 2019: 126 hr at 9.46 + 90 hr at 9.47 ,08/05/2019,0137567,"2,044.26",Revenue,Chorley Youth Zone,77339
Chorley Borough Council,http://statistics.data.gov.uk/id/local-authority/30UE,Business Support,1095,Business Development & Growth,Miscellaneous Expenses,40200,Miscellaneous Expenses,5034,Works undertaken re patching ports - Digital Office Hub,08/05/2019,0137684,287.88,Revenue,Chris Bewley,77780
Chorley Borough Council,http://statistics.data.gov.uk/id/local-authority/30UE,Capital,Capital,Customer & Digital,Other Contractor,03012,Capital Expenditure,Capital,Consultancy Services Strawberry fields x 3 days,08/05/2019,0137721,"1,350.00",Capital,Chris Bewley,77780
Chorley Borough Council,http://statistics.data.gov.uk/id/local-authority/30UE,Central Support Services,1009,Business Development & Growth,Training Course Fees,17010,Indirect Employee Expenses,5002,Literacy course April 2019,03/05/2019,0137603,525.00,Revenue,Christine Edwards,77601
Chorley Borough Council,http://statistics.data.gov.uk/id/local-authority/30UE,Economic Development,1096,Business Development & Growth,Miscellaneous Expenses,40200,Miscellaneous Expenses,5034,Full anchor tests/cert 73 at 27 ea Installation/ removal of approx. 850 metres of summer bunting ,17/05/2019,0137847,"3,363.00",Revenue,City Illuminations Ltd,77388
Chorley Borough Council,http://statistics.data.gov.uk/id/local-authority/30UE,Economic Development,1096,Business Development & Growth,Miscellaneous Expenses,40200,Miscellaneous Expenses,5034,Removal of approx. 900m of summer bunting along with visual inspection of ibolts and relevant certification. ( Oct 2018),17/05/2019,0137958,"1,575.00",Revenue,City Illuminations Ltd,77388
Chorley Borough Council,http://statistics.data.gov.uk/id/local-authority/30UE,Economic Development,1096,Business Development & Growth,Miscellaneous Expenses,40200,Miscellaneous Expenses,5034,Additional anchor and cat wire works Town Centre Bunting install - 445 Bunting removal - 190,31/05/2019,0138176,"2,248.00",Revenue,City Illuminations Ltd,77388
Chorley Borough Council,http://statistics.data.gov.uk/id/local-authority/30UE,Business Support,1095,Business Development & Growth,Miscellaneous Expenses,40200,Miscellaneous Expenses,5034,Anchor and cat wire works within Market Walk Shopping centre - Completed all works except xmas light 439,31/05/2019,0138176,439.00,Revenue,City Illuminations Ltd,77388
Chorley Borough Council,http://statistics.data.gov.uk/id/local-authority/30UE,Business Support,1095,Business Development & Growth,Professional Fees,40063,Services,5027,Digital hub consultancy scheduled for 27th March 2019 integration between Essensys and the Debtors system,31/05/2019,0138129,"1,430.00",Revenue,Civica UK Limited,17463
Chorley Borough Council,http://statistics.data.gov.uk/id/local-authority/30UE,Democratic Represent and  Mgnt,1007,Policy & Governance,Grants To Other Organisations,40127,Grants and Subscriptions,5031,GRANT 2018/2019,03/05/2019,0137666,250.00,Revenue,Clayton Brook Residents Group,78021
Chorley Borough Council,http://statistics.data.gov.uk/id/local-authority/30UE,Democratic Represent and  Mgnt,1007,Business Development & Growth,Maintenance/Nature Reserves,20045,Grounds Maintenance Costs,5013,"Quote Ref JE6813 19 3 days habitat mgmt - Withnell Nature Reserve at the heather beds, remove bramble and regen trees.",01/05/2019,0136901,"1,275.75",Revenue,Conservation Contracts North West,20520
Chorley Borough Council,http://statistics.data.gov.uk/id/local-authority/30UE,Capital,Capital,Business Development & Growth,Main Contractor,03007,Capital Expenditure,Capital,"Yarrow Meadows site set up, security, abutments, river bank, pond management and river outfall adaption, brush mattress",01/05/2019,0137485,"3,187.82",Capital,Conservation Contracts North West,20520
Chorley Borough Council,http://statistics.data.gov.uk/id/local-authority/30UE,Democratic Represent and  Mgnt,1007,Business Development & Growth,Maintenance/Nature Reserves,20045,Grounds Maintenance Costs,5013,Quotation Ref JE6812 19 at Withnell Local Nature Reserve - habitat management works to the top embankment,22/05/2019,0138067,752.60,Revenue,Conservation Contracts North West,20520
Chorley Borough Council,http://statistics.data.gov.uk/id/local-authority/30UE,Capital,Capital,Customer & Digital,Main Contractor,03007,Capital Expenditure,Capital,Installation of external cabinet and 2 x 8 core fibres from Friday Street Car Park to Union Street Offices,29/05/2019,0138056,"5,112.48",Capital,Core Integrated Solutions,77043
Chorley Borough Council,http://statistics.data.gov.uk/id/local-authority/30UE,Recreation & Sport,1037,Business Development & Growth,Gas,20014,Energy Costs,5006,mar19 to apr19,01/05/2019,0137514,391.92,Revenue,Corona Energy Retail 2 Ltd,67249
Chorley Borough Council,http://statistics.data.gov.uk/id/local-authority/30UE,Homelessness,1075,Business Development & Growth,Gas,20014,Energy Costs,5006,mar 19 to apr19,01/05/2019,0137536,"1,102.04",Revenue,Corona Energy Retail 2 Ltd,67249
Chorley Borough Council,http://statistics.data.gov.uk/id/local-authority/30UE,Democratic Represent and  Mgnt,1007,Business Development & Growth,Gas,20014,Energy Costs,5006,mar19 to apr19,01/05/2019,0137538,264.13,Revenue,Corona Energy Retail 2 Ltd,67249
Chorley Borough Council,http://statistics.data.gov.uk/id/local-authority/30UE,Unapportionable Central OHeads,1009,Business Development & Growth,Gas,20014,Energy Costs,5006,mar19 to apr19,01/05/2019,0137542,350.56,Revenue,Corona Energy Retail 2 Ltd,67249
Chorley Borough Council,http://statistics.data.gov.uk/id/local-authority/30UE,Unapportionable Central OHeads,1009,Business Development & Growth,Gas,20014,Energy Costs,5006,feb 19 to mar19,01/05/2019,0137543,773.45,Revenue,Corona Energy Retail 2 Ltd,67249
Chorley Borough Council,http://statistics.data.gov.uk/id/local-authority/30UE,Unapportionable Central OHeads,1009,Business Development & Growth,Gas,20014,Energy Costs,5006,mar19 to apr19,01/05/2019,0137544,765.14,Revenue,Corona Energy Retail 2 Ltd,67249
Chorley Borough Council,http://statistics.data.gov.uk/id/local-authority/30UE,Democratic Represent and  Mgnt,1007,Business Development & Growth,Gas,20014,Energy Costs,5006,mar 19 to apr19,01/05/2019,0137545,553.67,Revenue,Corona Energy Retail 2 Ltd,67249
Chorley Borough Council,http://statistics.data.gov.uk/id/local-authority/30UE,Unapportionable Central OHeads,1009,Policy & Governance,Publicity - Advertising,40157,Miscellaneous Expenses,5034,Lancashire Section - Advertisement in theroombook,03/05/2019,0137618,"1,500.00",Revenue,COVER TO COVER LTD,77986
Chorley Borough Council,http://statistics.data.gov.uk/id/local-authority/30UE,Capital,Capital,Customer & Digital,Equipment,03014,Capital Expenditure,Capital,Neo plastic wheeled bin 240 litre Colour : GREY Quantity :600 Including Chorley logo.,10/05/2019,0137210,"9,180.00",Capital,Craemer UK Ltd,64712
Chorley Borough Council,http://statistics.data.gov.uk/id/local-authority/30UE,Capital,Capital,Customer & Digital,Equipment,03014,Capital Expenditure,Capital,240 litre Neo plastic wheeled bin. Colour :Brown Quantity 600 Delivered in 2 X 300,01/05/2019,0137212,"4,650.00",Capital,Craemer UK Ltd,64712
Chorley Borough Council,http://statistics.data.gov.uk/id/local-authority/30UE,Capital,Capital,Customer & Digital,Equipment,03014,Capital Expenditure,Capital,240 litre wheeled bin   Colour :Grey  Unit price:15:30 Quantity :600 Chorley Logo in white.,15/05/2019,0137851,"6,120.00",Capital,Craemer UK Ltd,64712
Chorley Borough Council,http://statistics.data.gov.uk/id/local-authority/30UE,Capital,Capital,Customer & Digital,Equipment,03014,Capital Expenditure,Capital,240 litre wheeled bin   Colour :Grey  Unit price:15:30 Quantity :600 Chorley Logo in white.,15/05/2019,0137852,"3,060.00",Capital,Craemer UK Ltd,64712
Chorley Borough Council,http://statistics.data.gov.uk/id/local-authority/30UE,Central Support Services,1009,Early Intervention,Miscellaneous Expenses,40200,Miscellaneous Expenses,5034,neighbourhood working,17/05/2019,0137982,"1,390.00",Revenue,Croston Parish Council,17026
Chorley Borough Council,http://statistics.data.gov.uk/id/local-authority/30UE,Unapportionable Central OHeads,1009,Policy & Governance,Exhibitions & Special Events,40158,Miscellaneous Expenses,5034,"10 x  Airmesh 115gsm Double Sided Barriers (Non fire rated)Total price - 427.80+VAT",15/05/2019,0137860,427.80,Revenue,Crowd Control Solutions,78001
Chorley Borough Council,http://statistics.data.gov.uk/id/local-authority/30UE,Service Management & Support,1009,Customer & Digital,Diesel/Derv,30007,Direct Transport Costs,5016,"as per quotation on The Chest 1,500L gas Oil Gas Oil - 58.25",15/05/2019,0137818,873.75,Revenue,Crown Oil Ltd,16739
Chorley Borough Council,http://statistics.data.gov.uk/id/local-authority/30UE,Service Management & Support,1009,Customer & Digital,Diesel/Derv,30007,Direct Transport Costs,5016,"as per quotation on The Chest 4,400L DERVDERV - 1.0435",15/05/2019,0137835,"4,591.40",Revenue,Crown Oil Ltd,16739
Chorley Borough Council,http://statistics.data.gov.uk/id/local-authority/30UE,Democratic Represent and  Mgnt,1007,Customer & Digital,Supplies-Grounds Maintenance,40025,"Equipment, Furniture & Materia",5023,Man and machine for 1 days work,01/05/2019,0137548,250.00,Revenue,Derek R Smith,21092
Chorley Borough Council,http://statistics.data.gov.uk/id/local-authority/30UE,Democratic Represent and  Mgnt,1007,Customer & Digital,Supplies-Grounds Maintenance,40025,"Equipment, Furniture & Materia",5023,Hire of dumper and roller for 1 week,01/05/2019,0137548,260.00,Revenue,Derek R Smith,21092
Chorley Borough Council,http://statistics.data.gov.uk/id/local-authority/30UE,Democratic Represent and  Mgnt,1007,Customer & Digital,Maintenance/Nature Reserves,20045,Grounds Maintenance Costs,5013,1 Days work for man and machine on Lower burgh meadows,01/05/2019,0137548,250.00,Revenue,Derek R Smith,21092
Chorley Borough Council,http://statistics.data.gov.uk/id/local-authority/30UE,Service Management & Support,1009,Customer & Digital,Supplies-Grounds Maintenance,40025,"Equipment, Furniture & Materia",5023,"Works completed at Muslim Section, Chorley Cemetery Removed soil from excavation of muslim chambers",15/05/2019,0137734,"1,000.00",Revenue,Derek R Smith,21092
Chorley Borough Council,http://statistics.data.gov.uk/id/local-authority/30UE,Corporate Management,1008,Policy & Governance,Furniture - Purchase,40012,"Equipment, Furniture & Materia",5023,"Pen transmitter, Table Mic transmitter twin pack, X receiver band 02 x 2, DAI shoe for hearing aids x 2, Telephone adapter",15/05/2019,0137749,"4,440.00",Revenue,Digital Hearing Care Solutions Ltd,77949
Chorley Borough Council,http://statistics.data.gov.uk/id/local-authority/30UE,Service Management & Support,1009,Customer & Digital,Tools & Equipment - Maintenance,40005,"Equipment, Furniture & Materia",5023,Average Test Data - average vibration test data readings taken from data base of real life test results carried out by Earlsmere,24/05/2019,0137937,350.00,Revenue,Earlsmere Ltd,77775
Chorley Borough Council,http://statistics.data.gov.uk/id/local-authority/30UE,Service Management & Support,1009,Customer & Digital,Tools & Equipment - Maintenance,40005,"Equipment, Furniture & Materia",5023,Tool and Equipment Vibration Testing -To attend site at Chorley and carry out detailed vibration inspections to 90 items ,24/05/2019,0137937,"2,230.00",Revenue,Earlsmere Ltd,77775
Chorley Borough Council,http://statistics.data.gov.uk/id/local-authority/30UE,Business Support,1095,Business Development & Growth,Miscellaneous Expenses,40200,Miscellaneous Expenses,5034,GRN` IN FULL IN ERROR,24/05/2019,0138005,"1,250.00",Revenue,EC Energy Ltd trading as Energy Council,76841
Chorley Borough Council,http://statistics.data.gov.uk/id/local-authority/30UE,Elections,1012,Policy & Governance,Rent/Hire Of Premises,20017,Premises Rents,5007,room hire for polling station at bateman hall 2 May 2019,22/05/2019,0138003,450.00,Revenue,Eccleston Over 60s Club,21590
Chorley Borough Council,http://statistics.data.gov.uk/id/local-authority/30UE,Democratic Represent and  Mgnt,1007,Business Development & Growth,Water Abstraction Licence,20025,Water Services,5009,"Mitigation Trapping (July/August 2015),  Internal fence and pitfall trap removal, Checking and Minor Maint - Amphibian Fence",31/05/2019,0138180,"9,593.70",Revenue,Ecology Services,58852
Chorley Borough Council,http://statistics.data.gov.uk/id/local-authority/30UE,Central Support Services,1009,Customer & Digital,Mobile Voice and Data,40086,Communication and Computing,5028,03-May-19,15/05/2019,0137902,"1,587.60",Revenue,EE - Orange,16486
Chorley Borough Council,http://statistics.data.gov.uk/id/local-authority/30UE,Central Support Services,1009,Customer & Digital,Mobile Voice and Data,40086,Communication and Computing,5028,May-19,10/05/2019,0137762,287.34,Revenue,EE LIMITED,63366
Chorley Borough Council,http://statistics.data.gov.uk/id/local-authority/30UE,Central Support Services,1009,Customer & Digital,Mobile Voice and Data,40086,Communication and Computing,5028,Apr-19,10/05/2019,0137763,326.76,Revenue,EE LIMITED,63366
Chorley Borough Council,http://statistics.data.gov.uk/id/local-authority/30UE,Economic Development,1096,Business Development & Growth,Professional Fees,40063,Services,5027,Proposal for future High St support,01/05/2019,0137418,"5,428.50",Revenue,EKOSGEN,71520
Chorley Borough Council,http://statistics.data.gov.uk/id/local-authority/30UE,Unapportionable Central OHeads,1009,Customer & Digital,Depot Licences,40236,Miscellaneous Expenses,5034,FY 2019/2020 payment for permit EPR Ref SP3697CC/A001 for Bengal Street Depot PR7 1SA.. As invoice No : N00002430T,08/05/2019,0137681,"1,295.00",Revenue,Environment Agency,18256
Chorley Borough Council,http://statistics.data.gov.uk/id/local-authority/30UE,Capital,Capital,Business Development & Growth,Main Contractor,03007,Capital Expenditure,Capital,Final payment for Primrose Gardens,08/05/2019,0137707,"59,569.52",Capital,Eric Wright Construction Ltd,76464
Chorley Borough Council,http://statistics.data.gov.uk/id/local-authority/30UE,Capital,Capital,Business Development & Growth,Main Contractor,03007,Capital Expenditure,Capital,,08/05/2019,0137707,"481,974.02",Capital,Eric Wright Construction Ltd,76464
Chorley Borough Council,http://statistics.data.gov.uk/id/local-authority/30UE,Capital,Capital,Business Development & Growth,Main Contractor,03007,Capital Expenditure,Capital,Market Walk Extension Contract - Phase 2,17/05/2019,0137943,"1,283,811.54",Capital,Eric Wright Construction Ltd,76464
Chorley Borough Council,http://statistics.data.gov.uk/id/local-authority/30UE,Central Support Services,1009,Customer & Digital,IT Software - Annual Licences,40101,Communication and Computing,5028,"SLG ELA Tier 2 24-04-2019 23-04-2020 Prod Suite Gov, Site Maint Data Interoperability, Single User Primary Maintenance ",03/05/2019,0137549,"22,300.00",Revenue,ESRI (UK) Ltd,19692
Chorley Borough Council,http://statistics.data.gov.uk/id/local-authority/30UE,Corporate Management,1008,Customer & Digital,Printing,40043,"Printing, Stationery & General",5026,Chorley Garden Waste Collection Permits 2019-2020,29/05/2019,0137746,"14,101.04",Revenue,Euro Labels Printers Ltd,77202
Chorley Borough Council,http://statistics.data.gov.uk/id/local-authority/30UE,Unapportionable Central OHeads,1009,Policy & Governance,Exhibitions & Special Events,40158,Miscellaneous Expenses,5034,"Chorley 10k Event management, organisation and sundries",29/05/2019,0138106,"10,435.95",Revenue,Event Guru Blackpool Ltd,78002
Chorley Borough Council,http://statistics.data.gov.uk/id/local-authority/30UE,Open Spaces,1038,Customer & Digital,Urban Tree Scheme,20046,Grounds Maintenance Costs,5013,5 x 14 - 16cm Cherry trees `Kazan`,15/05/2019,0137898,750.00,Revenue,Everglades Nurseries Ltd,20202
Chorley Borough Council,http://statistics.data.gov.uk/id/local-authority/30UE,Central Support Services,1009,Customer & Digital,Miscellaneous Expenses,40200,Miscellaneous Expenses,5034,Exacom Public Facing Module (PFM) and &#64257;rst years maintenance.,29/05/2019,0135758,"9,500.00",Revenue,Exacom,77822
Chorley Borough Council,http://statistics.data.gov.uk/id/local-authority/30UE,Service Management & Support,1009,Customer & Digital,Vehicles and Plant Maintenance,30045,Direct Transport Costs,5016,as per Q10714 mcconell Flails,22/05/2019,0137971,515.50,Revenue,F R Sharrock Ltd,18091
Chorley Borough Council,http://statistics.data.gov.uk/id/local-authority/30UE,Service Management & Support,1009,Customer & Digital,Vehicles and Plant Maintenance,30045,Direct Transport Costs,5016,as per pro-forma 136377,22/05/2019,0138018,365.32,Revenue,F R Sharrock Ltd,18091
Chorley Borough Council,http://statistics.data.gov.uk/id/local-authority/30UE,Tourism,1039,Policy & Governance,External Contractor,40198,Miscellaneous Expenses,5034,"Supply, fitting, hire and removal for Marquees for the Flower Show 2019 From 15 July until Wed 31 July",08/05/2019,0137500,"11,456.48",Revenue,Field and Lawn Ltd,74977
Chorley Borough Council,http://statistics.data.gov.uk/id/local-authority/30UE,Unapportionable Central OHeads,1009,Policy & Governance,Legal Fees,40171,Miscellaneous Expenses,5034,Professional fees from 27.02.19 - 25.03.19,22/05/2019,0138006,"1,566.00",Revenue,Forbes Solicitors,17527
Chorley Borough Council,http://statistics.data.gov.uk/id/local-authority/30UE,Unapportionable Central OHeads,1009,Policy & Governance,Legal Fees,40171,Miscellaneous Expenses,5034,Professional fees from 26.03.19 - 26.04.19,22/05/2019,0138008,"1,699.00",Revenue,Forbes Solicitors,17527
Chorley Borough Council,http://statistics.data.gov.uk/id/local-authority/30UE,Business Support,1095,Business Development & Growth,Gas,20014,Energy Costs,5006,ADDRESS REDACTED 30/10/18 to 28/11/18,01/05/2019,0137493,386.10,Revenue,Gazprom Energy,56502
Chorley Borough Council,http://statistics.data.gov.uk/id/local-authority/30UE,Business Support,1095,Business Development & Growth,Gas,20014,Energy Costs,5006,1/4/19 to 30/4/19,17/05/2019,0137922,271.93,Revenue,Gazprom Energy,56502
Chorley Borough Council,http://statistics.data.gov.uk/id/local-authority/30UE,Service Management & Support,1009,Customer & Digital,Tools & Equipment - Maintenance,40005,"Equipment, Furniture & Materia",5023,2 sets of Double Space-Liner� Orderly Barrow wheels for the handcart,22/05/2019,0137969,270.12,Revenue,Glasdon UK Ltd,17505
Chorley Borough Council,http://statistics.data.gov.uk/id/local-authority/30UE,Service Management & Support,1009,Customer & Digital,Hire Of Vehicles and Plant,30028,Contrct Hire & Operating Lease,5018,Transportation cost for Schmidt Swingo AE15 SXF,08/05/2019,0137496,819.00,Revenue,Go Plant Ltd,77990
Chorley Borough Council,http://statistics.data.gov.uk/id/local-authority/30UE,Service Management & Support,1009,Customer & Digital,Supplies-Grounds Maintenance,40025,"Equipment, Furniture & Materia",5023,"6x Poly wire brushes for swingo, 6xPoly brushes for swingo, 6x VT651 Channel brush kit",08/05/2019,0137499,455.00,Revenue,Go Plant Ltd,77990
Chorley Borough Council,http://statistics.data.gov.uk/id/local-authority/30UE,Service Management & Support,1009,Customer & Digital,Hire Of Vehicles and Plant,30028,Contrct Hire & Operating Lease,5018,Hire of AE15 SXF Swingo 200,10/05/2019,0137727,455.00,Revenue,Go Plant Ltd,77990
Chorley Borough Council,http://statistics.data.gov.uk/id/local-authority/30UE,Service Management & Support,1009,Customer & Digital,Hire Of Vehicles and Plant,30028,Contrct Hire & Operating Lease,5018,Sweeper hire 27/04/2019 - 03/05/2019,17/05/2019,0137918,455.00,Revenue,Go Plant Ltd,77990
Chorley Borough Council,http://statistics.data.gov.uk/id/local-authority/30UE,Service Management & Support,1009,Customer & Digital,Supplies-Grounds Maintenance,40025,"Equipment, Furniture & Materia",5023,"6x Poly wire brushes for swingo, 6xPoly brushes for swingo, 6x VT651 Channel brush kit",22/05/2019,0137954,485.94,Revenue,Go Plant Ltd,77990
Chorley Borough Council,http://statistics.data.gov.uk/id/local-authority/30UE,Service Management & Support,1009,Customer & Digital,Hire Of Vehicles and Plant,30028,Contrct Hire & Operating Lease,5018,"Hire of Schmidt swingo 200 mini sweeper AE15 SXF",24/05/2019,0138085,455.00,Revenue,Go Plant Ltd,77990
Chorley Borough Council,http://statistics.data.gov.uk/id/local-authority/30UE,Corporate Management,1008,Customer & Digital,Professional Fees,40063,Services,5027,2019-2020 Garden Waste Subscriptions,15/05/2019,0137924,"4,073.26",Revenue,GoCardless,77457
Chorley Borough Council,http://statistics.data.gov.uk/id/local-authority/30UE,Central Support Services,1009,Customer & Digital,Vandalism Repairs,20005,Repairs Maintenance & Alts,5005,Contract for graffiti removal half year 2019 - 2020,22/05/2019,0138066,450.00,Revenue,Graffiti Away,76316
Chorley Borough Council,http://statistics.data.gov.uk/id/local-authority/30UE,Central Support Services,1009,Customer & Digital,Vandalism Repairs,20005,Repairs Maintenance & Alts,5005,Contract for graffiti removal half year 2019 - 2020,22/05/2019,0138079,565.00,Revenue,Graffiti Away,76316
Chorley Borough Council,http://statistics.data.gov.uk/id/local-authority/30UE,Service Management & Support,1009,Customer & Digital,Supplies-Grounds Maintenance,40025,"Equipment, Furniture & Materia",5023,30 x boxes of 100 elastic bands 300 x 15mm as discussed with NAME REDACTED @15.70per box,03/05/2019,0137620,471.00,Revenue,Harrisons Packaging Ltd,17555
Chorley Borough Council,http://statistics.data.gov.uk/id/local-authority/30UE,Development Control,1091,Customer & Digital,General Subscriptions,40146,Grants and Subscriptions,5031,"Renew Annual Subscription to DCP Online for 17 usersEarly Bird Rate 2,350.00 + VAT",24/05/2019,0138065,"2,350.00",Revenue,Haymarket Publishing Services Ltd,16347
Chorley Borough Council,http://statistics.data.gov.uk/id/local-authority/30UE,Central Support Services,1009,Business Development & Growth,Operational Employees Salaries,10000,Direct Employee Expenses,5001,Fees for NAME REDACTED Estates Surveyor Ref 29419253,01/05/2019,0136837,"5,472.00",Revenue,Hays Senior Finance,20078
Chorley Borough Council,http://statistics.data.gov.uk/id/local-authority/30UE,Democratic Represent and  Mgnt,1007,Early Intervention,Miscellaneous Expenses,40200,Miscellaneous Expenses,5034,"EGCC-Paint all doors and frames to match test door. Work to be undertaken Tuesday-Friday w/c  22/04/2019. Jan 2019",08/05/2019,0137504,390.00,Revenue,Henry Nightingale & Son,17923
Chorley Borough Council,http://statistics.data.gov.uk/id/local-authority/30UE,Democratic Represent and  Mgnt,1007,Early Intervention,Miscellaneous Expenses,40200,Miscellaneous Expenses,5034,Repair walls. Repaint walls and associated fixtures. Work to be undertaken Tuesday-Friday w/c 22/04/2019 460 As quote ,08/05/2019,0137504,460.00,Revenue,Henry Nightingale & Son,17923
Chorley Borough Council,http://statistics.data.gov.uk/id/local-authority/30UE,Democratic Represent and  Mgnt,1007,Business Development & Growth,Fixtures & Fittings - Repair/Mtnce,20028,Fixtures and Fittings,5010,Redecorate the gallery room following exhibition removal,10/05/2019,0137766,885.00,Revenue,Henry Nightingale & Son,17923
Chorley Borough Council,http://statistics.data.gov.uk/id/local-authority/30UE,Capital,Capital,Customer & Digital,Other Capital Grants/Loans,03000,Capital Expenditure,Capital,,01/05/2019,0137466,"5,730.06",Capital,Heritage Trust for the North West,77042
Chorley Borough Council,http://statistics.data.gov.uk/id/local-authority/30UE,Central Support Services,1009,Business Development & Growth,Professional Fees,40063,Services,5027,"Project management works for Shady LaneStages 1-4a",08/05/2019,0137696,"1,650.00",Revenue,Hive Land & Planning Limited,77330
Chorley Borough Council,http://statistics.data.gov.uk/id/local-authority/30UE,Unapportionable Central OHeads,1009,Policy & Governance,Legal Fees,40171,Miscellaneous Expenses,5034,SDLT due on purchase ADDRESS REDACTED syrian refugee,22/05/2019,0137956,"5,002.00",Revenue,HM Revenue & Customs,56499
Chorley Borough Council,http://statistics.data.gov.uk/id/local-authority/30UE,Capital,Capital,Policy & Governance,Stamp Duty,03026,Capital Expenditure,Capital,ADDRESS REDACTED SDLT,22/05/2019,0137983,"4,600.00",Capital,HM Revenue & Customs,56499
Chorley Borough Council,http://statistics.data.gov.uk/id/local-authority/30UE,Capital,Capital,Policy & Governance,Stamp Duty,03026,Capital Expenditure,Capital,ADDRESS REDACTED,22/05/2019,0137984,"5,000.00",Capital,HM Revenue & Customs,56499
Chorley Borough Council,http://statistics.data.gov.uk/id/local-authority/30UE,Capital,Capital,Business Development & Growth,Architects Fees,03022,Capital Expenditure,Capital,"Digital Office Park, Chorley",22/05/2019,0138084,"1,127.00",Capital,Howarth Litchfield Partnership,76440
Chorley Borough Council,http://statistics.data.gov.uk/id/local-authority/30UE,Corporate Management,1008,Policy & Governance,Other Fees,40212,Miscellaneous Expenses,5034,Subsidy for the provision of a meals on wheels service in Chorley to 28 April 2019,15/05/2019,0137892,"1,842.79",Revenue,I Care GB Ltd,77247
Chorley Borough Council,http://statistics.data.gov.uk/id/local-authority/30UE,Business Support,1095,Business Development & Growth,Miscellaneous Expenses,40200,Miscellaneous Expenses,5034,Project Management consultancy services for the Digital Office Park project,01/05/2019,0137430,"1,800.00",Revenue,Identity Consult Ltd,76426
Chorley Borough Council,http://statistics.data.gov.uk/id/local-authority/30UE,Business Support,1095,Business Development & Growth,Miscellaneous Expenses,40200,Miscellaneous Expenses,5034,ITT procurement exercise for Chorley Digital Office Park,24/05/2019,0138100,"1,800.00",Revenue,Identity Consult Ltd,76426
Chorley Borough Council,http://statistics.data.gov.uk/id/local-authority/30UE,Community Development,1097,Policy & Governance,Miscellaneous Expenses,40200,Miscellaneous Expenses,5034,Renewal of Open 4 Community for 2019/20 to enable groups to access grant funding,10/05/2019,0137492,"4,500.00",Revenue,IDOX Software Limited,17542
Chorley Borough Council,http://statistics.data.gov.uk/id/local-authority/30UE,Elections,1012,Policy & Governance,Computer Software-Maintenance,40107,Communication and Computing,5028,EC6 - form processing development costs,15/05/2019,0137838,350.00,Revenue,IDOX Software Limited,17542
Chorley Borough Council,http://statistics.data.gov.uk/id/local-authority/30UE,Other Short Term Creditors,,Policy & Governance,General Balances,00100,Balance Sheet,Balance,income tax,03/05/2019,0137596,"2,731.60",Revenue,Inland Revenue 065/CH1094A,77147
Chorley Borough Council,http://statistics.data.gov.uk/id/local-authority/30UE,Business Support,1095,Business Development & Growth,Refuse Collection,20037,Cleaning and Domestic Supplies,5012,Waste Compactor Rental Services @ 270 per month for 01 April 2019 - 31 March 2020,03/05/2019,0137597,270.00,Revenue,J&H Rentals Limited,70699
Chorley Borough Council,http://statistics.data.gov.uk/id/local-authority/30UE,Business Support,1095,Business Development & Growth,Refuse Collection,20037,Cleaning and Domestic Supplies,5012,Waste Compactor Rental Services @ 270 per month for 01 April 2019 - 31 March 2020,10/05/2019,0137839,270.00,Revenue,J&H Rentals Limited,70699
Chorley Borough Council,http://statistics.data.gov.uk/id/local-authority/30UE,Unapportionable Central OHeads,1009,Policy & Governance,HR Recruitment - Advertising,15300,Indirect Employee Expenses,5002,Recruitment Fees for NAME REDACTED,17/05/2019,0137934,"2,802.54",Revenue,James Andrews Recruitment Solutions,78040
Chorley Borough Council,http://statistics.data.gov.uk/id/local-authority/30UE,Capital,Capital,Policy & Governance,Purchase Money,03027,Capital Expenditure,Capital,Purchase Price,08/05/2019,0137725,"150,000.00",Capital,James Edward Rogerson,78032
Chorley Borough Council,http://statistics.data.gov.uk/id/local-authority/30UE,Homelessness,1075,Policy & Governance,Ground Rents,20016,Premises Rents,5007,Apportionment of rent to completion,08/05/2019,0137725,55.20,Revenue,James Edward Rogerson,78032
Chorley Borough Council,http://statistics.data.gov.uk/id/local-authority/30UE,Unapportionable Central OHeads,1009,Business Development & Growth,General Repairs - Reactive,20004,Repairs Maintenance & Alts,5005,Reactive works across all sites,22/05/2019,0137767,267.00,Revenue,James Mercer,20194
Chorley Borough Council,http://statistics.data.gov.uk/id/local-authority/30UE,Democratic Represent and  Mgnt,1007,Policy & Governance,Consultants` Fees,40077,Services,5027,"Consultant Conservator fees for 4 days, 3 x full days 5th, 11th, 18th Apri,  2 x half days 23rd April and 9th May ",17/05/2019,0137945,"1,000.00",Revenue,Janice Porter,77769
Chorley Borough Council,http://statistics.data.gov.uk/id/local-authority/30UE,Planning Policy,1092,Business Development & Growth,Professional Fees,40063,Services,5027,Undertake a Strategic Flood Risk Update for the Central Lancashire Local Plan. The Chest reference: DN378519.,10/05/2019,0137738,"4,536.00",Revenue,JBA Consulting,77859
Chorley Borough Council,http://statistics.data.gov.uk/id/local-authority/30UE,Homelessness,1075,Early Intervention,Rental Bond Scheme,40241,Miscellaneous Expenses,5034,bond scheme claim,22/05/2019,0138080,548.51,Revenue,NAME REDACTED,78050
Chorley Borough Council,http://statistics.data.gov.uk/id/local-authority/30UE,Democratic Represent and  Mgnt,1007,Customer & Digital,Maintenance/Nature Reserves,20045,Grounds Maintenance Costs,5013,30 of 3.6m x 150mm x 50mm green timber,08/05/2019,0137723,282.00,Revenue,John H Mayor & Sons Ltd,16635
Chorley Borough Council,http://statistics.data.gov.uk/id/local-authority/30UE,Democratic Represent and  Mgnt,1007,Customer & Digital,Maintenance/Nature Reserves,20045,Grounds Maintenance Costs,5013,50 @ 3.6m x 100mm x 38mm green timber,08/05/2019,0137723,191.50,Revenue,John H Mayor & Sons Ltd,16635
Chorley Borough Council,http://statistics.data.gov.uk/id/local-authority/30UE,Development Control,1091,Policy & Governance,Statutory Notices,40160,Miscellaneous Expenses,5034,Chorley Guardian - Public Notices,29/05/2019,0138124,908.96,Revenue,JPI Media - Johnston Publishing Ltd,20072
Chorley Borough Council,http://statistics.data.gov.uk/id/local-authority/30UE,Unapportionable Central OHeads,1009,Chief Executive,Corp Training Organisational Development,17006,Indirect Employee Expenses,5002,Bereavement Training,01/05/2019,0137578,895.00,Revenue,JW Training,64096
Chorley Borough Council,http://statistics.data.gov.uk/id/local-authority/30UE,Capital,Capital,Policy & Governance,Purchase Money,03027,Capital Expenditure,Capital,Purchase Price,08/05/2019,0137724,"150,000.00",Capital,NAMES REDACTED,78033
Chorley Borough Council,http://statistics.data.gov.uk/id/local-authority/30UE,Homelessness,1075,Policy & Governance,Ground Rents,20016,Premises Rents,5007,Apportionment of rent to completion,08/05/2019,0137724,54.73,Revenue,NAMES REDACTED,78033
Chorley Borough Council,http://statistics.data.gov.uk/id/local-authority/30UE,Service Management & Support,1009,Customer & Digital,Protective Clothing,40040,"Clothing, Uniforms and Laundry",5025,20 x tinted safety glasses PW33 @ 1.05 each,29/05/2019,0138086,21.00,Revenue,Key Engineering & Hygene Supplies,51615
Chorley Borough Council,http://statistics.data.gov.uk/id/local-authority/30UE,Service Management & Support,1009,Customer & Digital,Protective Clothing,40040,"Clothing, Uniforms and Laundry",5025,"SF85 Victor Waterproof Safety Boot (SF85) @ 29.95 each Size 8 x 3, size 9 x 4, size 10 x 2",29/05/2019,0138086,209.65,Revenue,Key Engineering & Hygene Supplies,51615
Chorley Borough Council,http://statistics.data.gov.uk/id/local-authority/30UE,Service Management & Support,1009,Customer & Digital,Protective Clothing,40040,"Clothing, Uniforms and Laundry",5025,"5 x Portvest PW40 Classic Hearing Defenders, PW40  lightweight, adjustable length. @ 2.08 each",29/05/2019,0138086,10.40,Revenue,Key Engineering & Hygene Supplies,51615
Chorley Borough Council,http://statistics.data.gov.uk/id/local-authority/30UE,Service Management & Support,1009,Customer & Digital,Protective Clothing,40040,"Clothing, Uniforms and Laundry",5025,"Polo Shirt, Cotton, red, Streetscene c/w Chorley Council logo, embroidered.  Medium  x 10, Larg",29/05/2019,0138086,95.80,Revenue,Key Engineering & Hygene Supplies,51615
Chorley Borough Council,http://statistics.data.gov.uk/id/local-authority/30UE,Unapportionable Central OHeads,1009,Policy & Governance,Consultants` Fees,40077,Services,5027,Marketing support for events,22/05/2019,0137981,"4,000.00",Revenue,KR Public Relations Limited,78009
Chorley Borough Council,http://statistics.data.gov.uk/id/local-authority/30UE,Tourism,1039,Policy & Governance,Publicity - Advertising,40157,Miscellaneous Expenses,5034,Chorley Flower Show advertising,31/05/2019,0138188,"8,650.00",Revenue,KR Public Relations Limited,78009
Chorley Borough Council,http://statistics.data.gov.uk/id/local-authority/30UE,Unapportionable Central OHeads,1009,Policy & Governance,Publicity - Advertising,40157,Miscellaneous Expenses,5034,Press cutting service,31/05/2019,0138189,600.00,Revenue,KR Public Relations Limited,78009
Chorley Borough Council,http://statistics.data.gov.uk/id/local-authority/30UE,Control Accounts,Control,Policy & Governance,General Balances,00100,Balance Sheet,Balance,monthly deds from expenses,01/05/2019,0137495,"1,272.07",Revenue,Labour Councillors Association,17577
Chorley Borough Council,http://statistics.data.gov.uk/id/local-authority/30UE,Control Accounts,Control,Policy & Governance,General Balances,00100,Balance Sheet,Balance,monthly ded from expenses,31/05/2019,0138168,"1,272.07",Revenue,Labour Councillors Association,17577
Chorley Borough Council,http://statistics.data.gov.uk/id/local-authority/30UE,Capital,Capital,Business Development & Growth,Main Contractor,03007,Capital Expenditure,Capital,"Carry out additional ducting works at Brunswick Street & Portland Street, Chorley, to be completed as soon as possible.",17/05/2019,0136871,"7,342.62",Capital,Lancashire County Council,20027
Chorley Borough Council,http://statistics.data.gov.uk/id/local-authority/30UE,Capital,Capital,Early Intervention,Grants,03002,Capital Expenditure,Capital,ADDRESS REDACTED,03/05/2019,0137440,804.00,Capital,Lancashire County Council,17758
Chorley Borough Council,http://statistics.data.gov.uk/id/local-authority/30UE,Capital,Capital,Early Intervention,Grants,03002,Capital Expenditure,Capital,ADDRESS REDACTED,03/05/2019,0137591,"3,309.00",Capital,Lancashire County Council,17758
Chorley Borough Council,http://statistics.data.gov.uk/id/local-authority/30UE,Capital,Capital,Early Intervention,Grants,03002,Capital Expenditure,Capital,ADDRESS REDACTED,03/05/2019,0137592,"4,099.00",Capital,Lancashire County Council,17758
Chorley Borough Council,http://statistics.data.gov.uk/id/local-authority/30UE,Corporate Management,1008,Policy & Governance,Other Contributions,40145,Grants and Subscriptions,5031,For the provision of the 109A (109B) / 24A (4A) / 6A bus services from 1 April 2018 to 30 June 2018,15/05/2019,0137893,"27,083.18",Revenue,Lancashire County Council,17758
Chorley Borough Council,http://statistics.data.gov.uk/id/local-authority/30UE,Central Support Services,1009,Customer & Digital,Computer - Support Services,40111,Communication and Computing,5028,"LCC- ICT Services SLA 01/10/18 TO 31/12/18100MB link between Chorley and SR 01/10/18 to 31/12/18",17/05/2019,0137935,"5,118.43",Revenue,Lancashire County Council,17101
Chorley Borough Council,http://statistics.data.gov.uk/id/local-authority/30UE,Capital,Capital,Early Intervention,Grants,03002,Capital Expenditure,Capital,,22/05/2019,0137993,"3,449.00",Capital,Lancashire County Council,17758
Chorley Borough Council,http://statistics.data.gov.uk/id/local-authority/30UE,Capital,Capital,Business Development & Growth,Other Expenses,03030,Capital Expenditure,Capital,"FAO NAME REDACTED ParkingTo supply/erect traffic regulation limited waiting signage at Park Road Chorley as quoted",29/05/2019,0138132,568.76,Capital,Lancashire County Council,20027
Chorley Borough Council,http://statistics.data.gov.uk/id/local-authority/30UE,Corporate Management,1008,Customer & Digital,Clinical Waste Collection,50007,Private Contractors,5042,"Disposal of clinical waste from Chorley  household. April 2018 to March 2019. Yellow bag collections, approx. 500 per month.",15/05/2019,0137754,954.68,Revenue,Lancashire Teaching Hospitals NHS FT,19003
Chorley Borough Council,http://statistics.data.gov.uk/id/local-authority/30UE,Private Sector HSG Renewal,1073,Early Intervention,External Contractor,40198,Miscellaneous Expenses,5034,Provision of Energy Switching support service (funded by LCC IHIS scheme) during April 2019.,24/05/2019,0138090,352.81,Revenue,Lancashire West Citizens Advice Bureaux,17035
Chorley Borough Council,http://statistics.data.gov.uk/id/local-authority/30UE,Corporate Management,1008,Policy & Governance,Car Leasing Payment,14100,Direct Employee Expenses,5001,VIN REDACTED,22/05/2019,0138028,280.86,Revenue,LeasePlan UK Ltd T/A Automotive Leasing,65197
Chorley Borough Council,http://statistics.data.gov.uk/id/local-authority/30UE,Corporate Management,1008,Policy & Governance,Car Leasing Payment,14100,Direct Employee Expenses,5001,vat,22/05/2019,0138028,25.01,Revenue,LeasePlan UK Ltd T/A Automotive Leasing,65197
Chorley Borough Council,http://statistics.data.gov.uk/id/local-authority/30UE,Unapportionable Central OHeads,1009,Business Development & Growth,Stationery,40050,"Printing, Stationery & General",5026,LYRECO WHITE C5 SELF SEAL WINDOW ENVELOPES 90GSM - BOX OF 500,10/05/2019,0137694,21.55,Revenue,Lyreco UK Ltd,17623
Chorley Borough Council,http://statistics.data.gov.uk/id/local-authority/30UE,Unapportionable Central OHeads,1009,Business Development & Growth,Stationery,40050,"Printing, Stationery & General",5026,Lyreco White C4 Self Seal Plain Envelopes 100Gsm - Box Of 250,10/05/2019,0137694,5.90,Revenue,Lyreco UK Ltd,17623
Chorley Borough Council,http://statistics.data.gov.uk/id/local-authority/30UE,Unapportionable Central OHeads,1009,Business Development & Growth,Stationery,40050,"Printing, Stationery & General",5026,LYRECO BUDGET WHITE 8 X 5INCH SHORTHAND NOTEBOOKS (RULED) - PACK OF 20(X80 SHTS),10/05/2019,0137694,6.00,Revenue,Lyreco UK Ltd,17623
Chorley Borough Council,http://statistics.data.gov.uk/id/local-authority/30UE,Unapportionable Central OHeads,1009,Business Development & Growth,Stationery,40050,"Printing, Stationery & General",5026,"6469418	LYRECO A3 GLOSS LAMINATING POUCH - Box 100",10/05/2019,0137694,4.83,Revenue,Lyreco UK Ltd,17623
Chorley Borough Council,http://statistics.data.gov.uk/id/local-authority/30UE,Unapportionable Central OHeads,1009,Business Development & Growth,Stationery,40050,"Printing, Stationery & General",5026,FOCUS MEDIUM POINT BALL PEN BLACK - BOX OF 50,10/05/2019,0137694,3.00,Revenue,Lyreco UK Ltd,17623
Chorley Borough Council,http://statistics.data.gov.uk/id/local-authority/30UE,Unapportionable Central OHeads,1009,Business Development & Growth,Stationery,40050,"Printing, Stationery & General",5026,Black Toner Cartridge for Lexmark T650 printer,10/05/2019,0137694,448.53,Revenue,Lyreco UK Ltd,17623
Chorley Borough Council,http://statistics.data.gov.uk/id/local-authority/30UE,Unapportionable Central OHeads,1009,Business Development & Growth,Stationery,40050,"Printing, Stationery & General",5026,PK20 ENERGIZER ALKALINE ECO ADVANCED AA,10/05/2019,0137694,12.52,Revenue,Lyreco UK Ltd,17623
Chorley Borough Council,http://statistics.data.gov.uk/id/local-authority/30UE,Unapportionable Central OHeads,1009,Business Development & Growth,Stationery,40050,"Printing, Stationery & General",5026,pk 20 Energizer AAA batteries,10/05/2019,0137694,13.26,Revenue,Lyreco UK Ltd,17623
Chorley Borough Council,http://statistics.data.gov.uk/id/local-authority/30UE,Unapportionable Central OHeads,1009,Business Development & Growth,Stationery,40050,"Printing, Stationery & General",5026,Metal-Ended Treasury Tags 25Mm - Pack Of 100,10/05/2019,0137694,2.16,Revenue,Lyreco UK Ltd,17623
Chorley Borough Council,http://statistics.data.gov.uk/id/local-authority/30UE,Development Control,1091,Customer & Digital,Miscellaneous Expenses,40200,Miscellaneous Expenses,5034,Notice served for tree works to large conifer hedges in the rear garden of ADDRESS REDACTED. Reduced in height,01/05/2019,0137422,250.00,Revenue,M J Walker,62044
Chorley Borough Council,http://statistics.data.gov.uk/id/local-authority/30UE,Capital,Capital,Early Intervention,Grants,03002,Capital Expenditure,Capital,ADDRESS REDACTED,22/05/2019,0138032,"4,250.00",Capital,M.J Park Building Contractors,20367
Chorley Borough Council,http://statistics.data.gov.uk/id/local-authority/30UE,Central Support Services,1009,Customer & Digital,Computer Equipment-Maintenance,40105,Communication and Computing,5028,Maintel Support Service - 01/03/2019 TO 31/08/2019 A_235958/1307760/CHORLEY +  A_235958/1307759/Chorley,10/05/2019,0137753,"5,419.21",Revenue,Maintel Europe Ltd,77971
Chorley Borough Council,http://statistics.data.gov.uk/id/local-authority/30UE,Unapportionable Central OHeads,1009,Policy & Governance,Agency Staff,13000,Direct Employee Expenses,5001,NAME REDACTED,03/05/2019,0137631,316.83,Revenue,Matrix SCM Ltd,22128
Chorley Borough Council,http://statistics.data.gov.uk/id/local-authority/30UE,Unapportionable Central OHeads,1009,Policy & Governance,Agency Staff,13000,Direct Employee Expenses,5001,NAME REDACTED,15/05/2019,0137798,395.28,Revenue,Matrix SCM Ltd,22128
Chorley Borough Council,http://statistics.data.gov.uk/id/local-authority/30UE,Unapportionable Central OHeads,1009,Policy & Governance,Agency Staff,13000,Direct Employee Expenses,5001,NAME REDACTED,29/05/2019,0138063,440.56,Revenue,Matrix SCM Ltd,22128
Chorley Borough Council,http://statistics.data.gov.uk/id/local-authority/30UE,Unapportionable Central OHeads,1009,Policy & Governance,Agency Staff,13000,Direct Employee Expenses,5001,NAME REDACTED,29/05/2019,0138063,738.40,Revenue,Matrix SCM Ltd,22128
Chorley Borough Council,http://statistics.data.gov.uk/id/local-authority/30UE,Unapportionable Central OHeads,1009,Policy & Governance,Agency Staff,13000,Direct Employee Expenses,5001,NAME REDACTED,29/05/2019,0138063,758.00,Revenue,Matrix SCM Ltd,22128
Chorley Borough Council,http://statistics.data.gov.uk/id/local-authority/30UE,Unapportionable Central OHeads,1009,Policy & Governance,Agency Staff,13000,Direct Employee Expenses,5001,NAME REDACTED,29/05/2019,0138109,244.41,Revenue,Matrix SCM Ltd,22128
Chorley Borough Council,http://statistics.data.gov.uk/id/local-authority/30UE,Unapportionable Central OHeads,1009,Policy & Governance,Agency Staff,13000,Direct Employee Expenses,5001,NAME REDACTED,29/05/2019,0138109,416.42,Revenue,Matrix SCM Ltd,22128
Chorley Borough Council,http://statistics.data.gov.uk/id/local-authority/30UE,Unapportionable Central OHeads,1009,Policy & Governance,Agency Staff,13000,Direct Employee Expenses,5001,NAME REDACTED,29/05/2019,0138109,734.77,Revenue,Matrix SCM Ltd,22128
Chorley Borough Council,http://statistics.data.gov.uk/id/local-authority/30UE,Unapportionable Central OHeads,1009,Business Development & Growth,Planned Maintenance,20006,Repairs Maintenance & Alts,5005,monthly water monitoring / testing for all sites for 6 months,31/05/2019,0137925,621.24,Revenue,Maxigiene Environmental Services Ltd,67160
Chorley Borough Council,http://statistics.data.gov.uk/id/local-authority/30UE,Democratic Represent and  Mgnt,1007,Business Development & Growth,Maintenance/Nature Reserves,20045,Grounds Maintenance Costs,5013,20 tonne Ultitrec for path resurfacing at Duxbury Woods,03/05/2019,0137088,466.00,Revenue,Mc & Ma Stewart (Haulage Ltd),16627
Chorley Borough Council,http://statistics.data.gov.uk/id/local-authority/30UE,Democratic Represent and  Mgnt,1007,Customer & Digital,Maintenance/Nature Reserves,20045,Grounds Maintenance Costs,5013,20 tonne of MOT delivered to Yarrow valley way ( same place ),22/05/2019,0137964,323.07,Revenue,Mc & Ma Stewart (Haulage Ltd),16627
Chorley Borough Council,http://statistics.data.gov.uk/id/local-authority/30UE,Unapportionable Central OHeads,1009,Policy & Governance,Agency Staff,13000,Direct Employee Expenses,5001,Recruitment to temporary Management Accountant Post - initial 3 month period,17/05/2019,0137840,720.77,Revenue,Michael Page International Limted,78006
Chorley Borough Council,http://statistics.data.gov.uk/id/local-authority/30UE,Unapportionable Central OHeads,1009,Policy & Governance,Agency Staff,13000,Direct Employee Expenses,5001,Recruitment to temporary Management Accountant Post - initial 3 month period,17/05/2019,0137926,752.38,Revenue,Michael Page International Limted,78006
Chorley Borough Council,http://statistics.data.gov.uk/id/local-authority/30UE,Unapportionable Central OHeads,1009,Policy & Governance,Agency Staff,13000,Direct Employee Expenses,5001,Recruitment to temporary Management Accountant Post - initial 3 month period,24/05/2019,0138055,942.05,Revenue,Michael Page International Limted,78006
Chorley Borough Council,http://statistics.data.gov.uk/id/local-authority/30UE,Unapportionable Central OHeads,1009,Policy & Governance,Agency Staff,13000,Direct Employee Expenses,5001,Recruitment to temporary Management Accountant Post - initial 3 month period,29/05/2019,0138143,942.05,Revenue,Michael Page International Limted,78006
Chorley Borough Council,http://statistics.data.gov.uk/id/local-authority/30UE,Capital,Capital,Early Intervention,Grants,03002,Capital Expenditure,Capital,ADDRESS REDACTED,08/05/2019,0137702,"4,709.17",Capital,Mint Northwest Ltd,65607
Chorley Borough Council,http://statistics.data.gov.uk/id/local-authority/30UE,Capital,Capital,Early Intervention,Grants,03002,Capital Expenditure,Capital,ADDRESS REDACTED,10/05/2019,0137841,"4,182.56",Capital,Mint Northwest Ltd,65607
Chorley Borough Council,http://statistics.data.gov.uk/id/local-authority/30UE,Private Sector HSG Renewal,1073,Early Intervention,External Contractor,40198,Miscellaneous Expenses,5034,Ref 1873,10/05/2019,0137676,66.00,Revenue,Mobility Care Services,70841
Chorley Borough Council,http://statistics.data.gov.uk/id/local-authority/30UE,Private Sector HSG Renewal,1073,Early Intervention,External Contractor,40198,Miscellaneous Expenses,5034,Ref 1877,10/05/2019,0137676,66.00,Revenue,Mobility Care Services,70841
Chorley Borough Council,http://statistics.data.gov.uk/id/local-authority/30UE,Private Sector HSG Renewal,1073,Early Intervention,External Contractor,40198,Miscellaneous Expenses,5034,Ref 1889,10/05/2019,0137676,256.00,Revenue,Mobility Care Services,70841
Chorley Borough Council,http://statistics.data.gov.uk/id/local-authority/30UE,Private Sector HSG Renewal,1073,Early Intervention,External Contractor,40198,Miscellaneous Expenses,5034,Ref 1891,10/05/2019,0137676,111.00,Revenue,Mobility Care Services,70841
Chorley Borough Council,http://statistics.data.gov.uk/id/local-authority/30UE,Private Sector HSG Renewal,1073,Early Intervention,External Contractor,40198,Miscellaneous Expenses,5034,Ref 1896,10/05/2019,0137676,111.00,Revenue,Mobility Care Services,70841
Chorley Borough Council,http://statistics.data.gov.uk/id/local-authority/30UE,Private Sector HSG Renewal,1073,Early Intervention,External Contractor,40198,Miscellaneous Expenses,5034,Ref 1890,10/05/2019,0137676,340.00,Revenue,Mobility Care Services,70841
Chorley Borough Council,http://statistics.data.gov.uk/id/local-authority/30UE,Private Sector HSG Renewal,1073,Early Intervention,External Contractor,40198,Miscellaneous Expenses,5034,Ref 1897,10/05/2019,0137676,180.00,Revenue,Mobility Care Services,70841
Chorley Borough Council,http://statistics.data.gov.uk/id/local-authority/30UE,Private Sector HSG Renewal,1073,Early Intervention,External Contractor,40198,Miscellaneous Expenses,5034,Ref 1898,10/05/2019,0137676,111.00,Revenue,Mobility Care Services,70841
Chorley Borough Council,http://statistics.data.gov.uk/id/local-authority/30UE,Private Sector HSG Renewal,1073,Early Intervention,External Contractor,40198,Miscellaneous Expenses,5034,Ref 1899,10/05/2019,0137676,111.00,Revenue,Mobility Care Services,70841
Chorley Borough Council,http://statistics.data.gov.uk/id/local-authority/30UE,Private Sector HSG Renewal,1073,Early Intervention,External Contractor,40198,Miscellaneous Expenses,5034,Ref 1900,10/05/2019,0137676,66.00,Revenue,Mobility Care Services,70841
Chorley Borough Council,http://statistics.data.gov.uk/id/local-authority/30UE,Private Sector HSG Renewal,1073,Early Intervention,External Contractor,40198,Miscellaneous Expenses,5034,Ref 1901,10/05/2019,0137676,680.00,Revenue,Mobility Care Services,70841
Chorley Borough Council,http://statistics.data.gov.uk/id/local-authority/30UE,Private Sector HSG Renewal,1073,Early Intervention,External Contractor,40198,Miscellaneous Expenses,5034,Ref 1902,10/05/2019,0137676,111.00,Revenue,Mobility Care Services,70841
Chorley Borough Council,http://statistics.data.gov.uk/id/local-authority/30UE,Private Sector HSG Renewal,1073,Early Intervention,External Contractor,40198,Miscellaneous Expenses,5034,Ref 1906,10/05/2019,0137676,111.00,Revenue,Mobility Care Services,70841
Chorley Borough Council,http://statistics.data.gov.uk/id/local-authority/30UE,Private Sector HSG Renewal,1073,Early Intervention,External Contractor,40198,Miscellaneous Expenses,5034,Ref 1911,10/05/2019,0137676,128.00,Revenue,Mobility Care Services,70841
Chorley Borough Council,http://statistics.data.gov.uk/id/local-authority/30UE,Private Sector HSG Renewal,1073,Early Intervention,External Contractor,40198,Miscellaneous Expenses,5034,Ref 1910,10/05/2019,0137676,111.00,Revenue,Mobility Care Services,70841
Chorley Borough Council,http://statistics.data.gov.uk/id/local-authority/30UE,Private Sector HSG Renewal,1073,Early Intervention,External Contractor,40198,Miscellaneous Expenses,5034,Ref 1909,10/05/2019,0137676,66.00,Revenue,Mobility Care Services,70841
Chorley Borough Council,http://statistics.data.gov.uk/id/local-authority/30UE,Private Sector HSG Renewal,1073,Early Intervention,External Contractor,40198,Miscellaneous Expenses,5034,Ref 1908,10/05/2019,0137676,180.00,Revenue,Mobility Care Services,70841
Chorley Borough Council,http://statistics.data.gov.uk/id/local-authority/30UE,Private Sector HSG Renewal,1073,Early Intervention,External Contractor,40198,Miscellaneous Expenses,5034,Ref 1907,10/05/2019,0137676,256.00,Revenue,Mobility Care Services,70841
Chorley Borough Council,http://statistics.data.gov.uk/id/local-authority/30UE,Private Sector HSG Renewal,1073,Early Intervention,External Contractor,40198,Miscellaneous Expenses,5034,Ref 1922,10/05/2019,0137676,66.00,Revenue,Mobility Care Services,70841
Chorley Borough Council,http://statistics.data.gov.uk/id/local-authority/30UE,Private Sector HSG Renewal,1073,Early Intervention,External Contractor,40198,Miscellaneous Expenses,5034,Ref 1923,10/05/2019,0137676,128.00,Revenue,Mobility Care Services,70841
Chorley Borough Council,http://statistics.data.gov.uk/id/local-authority/30UE,Private Sector HSG Renewal,1073,Early Intervention,External Contractor,40198,Miscellaneous Expenses,5034,Ref 1927,10/05/2019,0137676,111.00,Revenue,Mobility Care Services,70841
Chorley Borough Council,http://statistics.data.gov.uk/id/local-authority/30UE,Private Sector HSG Renewal,1073,Early Intervention,External Contractor,40198,Miscellaneous Expenses,5034,Ref 1926,10/05/2019,0137676,128.00,Revenue,Mobility Care Services,70841
Chorley Borough Council,http://statistics.data.gov.uk/id/local-authority/30UE,Private Sector HSG Renewal,1073,Early Intervention,External Contractor,40198,Miscellaneous Expenses,5034,Ref 1925,10/05/2019,0137676,111.00,Revenue,Mobility Care Services,70841
Chorley Borough Council,http://statistics.data.gov.uk/id/local-authority/30UE,Private Sector HSG Renewal,1073,Early Intervention,External Contractor,40198,Miscellaneous Expenses,5034,Ref 1951,10/05/2019,0137676,66.00,Revenue,Mobility Care Services,70841
Chorley Borough Council,http://statistics.data.gov.uk/id/local-authority/30UE,Private Sector HSG Renewal,1073,Early Intervention,External Contractor,40198,Miscellaneous Expenses,5034,Ref 1950,10/05/2019,0137676,66.00,Revenue,Mobility Care Services,70841
Chorley Borough Council,http://statistics.data.gov.uk/id/local-authority/30UE,Private Sector HSG Renewal,1073,Early Intervention,External Contractor,40198,Miscellaneous Expenses,5034,Ref 1949,10/05/2019,0137676,66.00,Revenue,Mobility Care Services,70841
Chorley Borough Council,http://statistics.data.gov.uk/id/local-authority/30UE,Private Sector HSG Renewal,1073,Early Intervention,External Contractor,40198,Miscellaneous Expenses,5034,Ref 1948,10/05/2019,0137676,132.00,Revenue,Mobility Care Services,70841
Chorley Borough Council,http://statistics.data.gov.uk/id/local-authority/30UE,Private Sector HSG Renewal,1073,Early Intervention,External Contractor,40198,Miscellaneous Expenses,5034,Ref 1947,10/05/2019,0137676,66.00,Revenue,Mobility Care Services,70841
Chorley Borough Council,http://statistics.data.gov.uk/id/local-authority/30UE,Private Sector HSG Renewal,1073,Early Intervention,External Contractor,40198,Miscellaneous Expenses,5034,Ref 1953,10/05/2019,0137676,132.00,Revenue,Mobility Care Services,70841
Chorley Borough Council,http://statistics.data.gov.uk/id/local-authority/30UE,Private Sector HSG Renewal,1073,Early Intervention,External Contractor,40198,Miscellaneous Expenses,5034,Ref 1954,10/05/2019,0137676,256.00,Revenue,Mobility Care Services,70841
Chorley Borough Council,http://statistics.data.gov.uk/id/local-authority/30UE,Private Sector HSG Renewal,1073,Early Intervention,External Contractor,40198,Miscellaneous Expenses,5034,Ref 1955,10/05/2019,0137676,222.00,Revenue,Mobility Care Services,70841
Chorley Borough Council,http://statistics.data.gov.uk/id/local-authority/30UE,Private Sector HSG Renewal,1073,Early Intervention,External Contractor,40198,Miscellaneous Expenses,5034,Ref 1956,10/05/2019,0137676,66.00,Revenue,Mobility Care Services,70841
Chorley Borough Council,http://statistics.data.gov.uk/id/local-authority/30UE,Private Sector HSG Renewal,1073,Early Intervention,External Contractor,40198,Miscellaneous Expenses,5034,Ref 1957,10/05/2019,0137676,66.00,Revenue,Mobility Care Services,70841
Chorley Borough Council,http://statistics.data.gov.uk/id/local-authority/30UE,Private Sector HSG Renewal,1073,Early Intervention,External Contractor,40198,Miscellaneous Expenses,5034,Ref 1977,10/05/2019,0137676,66.00,Revenue,Mobility Care Services,70841
Chorley Borough Council,http://statistics.data.gov.uk/id/local-authority/30UE,Private Sector HSG Renewal,1073,Early Intervention,External Contractor,40198,Miscellaneous Expenses,5034,Ref 1980,10/05/2019,0137676,220.00,Revenue,Mobility Care Services,70841
Chorley Borough Council,http://statistics.data.gov.uk/id/local-authority/30UE,Central Support Services,1009,Customer & Digital,Consultants` Fees,40077,Services,5027,"Annual support and Maintenance 7250 Restricted App 3000",15/05/2019,0137910,"10,250.00",Revenue,Modern Mindset LTD,51367
Chorley Borough Council,http://statistics.data.gov.uk/id/local-authority/30UE,Capital,Capital,Business Development & Growth,Other Capital Related Fees,03024,Capital Expenditure,Capital,"Alley Gate Locks, gear boxes, and keys for residents/ job centre.  Also 2nr extra notice board keys for Shoemaster 7.50",08/05/2019,0137184,593.00,Capital,Morris Locksmiths,22567
Chorley Borough Council,http://statistics.data.gov.uk/id/local-authority/30UE,Service Management & Support,1009,Customer & Digital,Training Course Fees,17010,Indirect Employee Expenses,5002,Lantra Accredited PA1 + PA6 Refresher training. 2 Days x 8 delegates at Bengal Street 13th/14th May,22/05/2019,0137932,900.00,Revenue,Morton Training Limited,76873
Chorley Borough Council,http://statistics.data.gov.uk/id/local-authority/30UE,Service Management & Support,1009,Business Development & Growth,External Contractor,40198,Miscellaneous Expenses,5034,Section 10 inspection for Birkacre reservoir,01/05/2019,0137423,"3,150.00",Revenue,Mott Macdonald Ltd,16200
Chorley Borough Council,http://statistics.data.gov.uk/id/local-authority/30UE,Service Management & Support,1009,Business Development & Growth,External Contractor,40198,Miscellaneous Expenses,5034,Section 12 inspection for Birkacre reservoir,01/05/2019,0137423,"1,558.80",Revenue,Mott Macdonald Ltd,16200
Chorley Borough Council,http://statistics.data.gov.uk/id/local-authority/30UE,Development Control,1091,Policy & Governance,Legal Fees,40171,Miscellaneous Expenses,5034,Attendance at first hearing on 08.05.19 for the NAME REDACTED Prosecution,22/05/2019,0137988,"1,500.00",Revenue,Mr Jacob Dyer,21575
Chorley Borough Council,http://statistics.data.gov.uk/id/local-authority/30UE,Business Support,1095,Business Development & Growth,Grants To Other Organisations,40127,Grants and Subscriptions,5031,GRANT for shop improvement,24/05/2019,0138097,"6,328.50",Revenue,NAME REDACTED,78059
Chorley Borough Council,http://statistics.data.gov.uk/id/local-authority/30UE,Economic Development,1096,Business Development & Growth,General Subscriptions,40146,Grants and Subscriptions,5031,To apply for membership of NABMA. Cost is 716 - no VAT,10/05/2019,0137564,716.00,Revenue,Nabma,16257
Chorley Borough Council,http://statistics.data.gov.uk/id/local-authority/30UE,Elections,1012,Chief Executive,Petrol,30005,Direct Transport Costs,5016,top up,01/05/2019,0137565,500.00,Revenue,Neopost Ltd RCB Credifon A/C,20009
Chorley Borough Council,http://statistics.data.gov.uk/id/local-authority/30UE,Elections,1012,Chief Executive,Petrol,30005,Direct Transport Costs,5016,top up fee,17/05/2019,0137960,500.00,Revenue,Neopost Ltd RCB Credifon A/C,20009
Chorley Borough Council,http://statistics.data.gov.uk/id/local-authority/30UE,Corporate Management,1008,Customer & Digital,"Hackney Badges, Plates Etc.",40023,"Equipment, Furniture & Materia",5023,Private Hire door signs to include tamper evident hologram and cover x40 @6.88 each,22/05/2019,0137980,275.20,Revenue,NewAuto Ltd t/a MOGO UK,17187
Chorley Borough Council,http://statistics.data.gov.uk/id/local-authority/30UE,Corporate Management,1008,Customer & Digital,"Hackney Badges, Plates Etc.",40023,"Equipment, Furniture & Materia",5023,Post & Packaging,22/05/2019,0137980,14.90,Revenue,NewAuto Ltd t/a MOGO UK,17187
Chorley Borough Council,http://statistics.data.gov.uk/id/local-authority/30UE,Corporate Management,1008,Policy & Governance,Printing,40043,"Printing, Stationery & General",5026,2 Week Full page Waste Management Advert,22/05/2019,0137755,477.42,Revenue,Newsquest (Lancashire) Limited,18117
Chorley Borough Council,http://statistics.data.gov.uk/id/local-authority/30UE,Capital,Capital,Customer & Digital,Other Capital Grants/Loans,03000,Capital Expenditure,Capital,CBC17,03/05/2019,0137477,"143,953.88",Capital,Next Big Thing Developments,77044
Chorley Borough Council,http://statistics.data.gov.uk/id/local-authority/30UE,Central Support Services,1009,Business Development & Growth,Consultants` Fees,40077,Services,5027,sub-consultant through HIVE for Alker Lane works - planning,17/05/2019,0137701,"1,500.00",Revenue,Nexus Planning Ltd,77421
Chorley Borough Council,http://statistics.data.gov.uk/id/local-authority/30UE,Central Support Services,1009,Early Intervention,Refunds,40220,Miscellaneous Expenses,5034,Refund of Street trading Consent - the caddy caffy,03/05/2019,0137452,406.33,Revenue,NAME REDACTED,77993
Chorley Borough Council,http://statistics.data.gov.uk/id/local-authority/30UE,Parking Services,1066,Business Development & Growth,External Contractors,50008,Private Contractors,5042,"Off street car park enforcement, cash collection, cash counting facilities, third party bulk cash collections for Apr 19 - Mar 20",03/05/2019,0137655,"4,876.13",Revenue,NSL Limited,67253
Chorley Borough Council,http://statistics.data.gov.uk/id/local-authority/30UE,Capital,Capital,Customer & Digital,Consultants Fees,03025,Capital Expenditure,Capital,4 days project management for April.,01/05/2019,0137551,"3,200.00",Capital,Nviron Limited,77141
Chorley Borough Council,http://statistics.data.gov.uk/id/local-authority/30UE,Corporate Management,1008,Policy & Governance,Training Course Fees,17010,Indirect Employee Expenses,5002,Top Team Development,15/05/2019,0137761,525.00,Revenue,Nwlaeo,17571
Chorley Borough Council,http://statistics.data.gov.uk/id/local-authority/30UE,Parking Services,1066,Business Development & Growth,Printing,40043,"Printing, Stationery & General",5026,200k Stelio Adhesive with Check out Chorley on reverse. Deliver FAO: NAME REDACTED Market Walk Management Suite,10/05/2019,0137759,936.98,Revenue,Paperwork (UK) Limited,18296
Chorley Borough Council,http://statistics.data.gov.uk/id/local-authority/30UE,Parking Services,1066,Business Development & Growth,Printing,40043,"Printing, Stationery & General",5026,"60,000 stock ticket number 102388 (2-part / stub)  Deliver to FAO NAME REDACTED Market Walk Management Suite ",29/05/2019,0138137,387.00,Revenue,Paperwork (UK) Limited,18296
Chorley Borough Council,http://statistics.data.gov.uk/id/local-authority/30UE,Central Support Services,1009,Business Development & Growth,Survey Expenses,40069,Services,5027,GPR survey at Alker Lane,01/05/2019,0137265,"4,400.00",Revenue,Paragon Surveys Ltd,77951
Chorley Borough Council,http://statistics.data.gov.uk/id/local-authority/30UE,Parking Services,1066,Customer & Digital,External Contractors,50008,Private Contractors,5042,Estimated Penalty Charge Notices for Quarter 1 April 2019- June 2019,10/05/2019,0137030,283.80,Revenue,PATROL,21859
Chorley Borough Council,http://statistics.data.gov.uk/id/local-authority/30UE,Unapportionable Central OHeads,1009,Policy & Governance,Agency Staff,13000,Direct Employee Expenses,5001,Supply of Finance Manager on interim basis from 5th February 2019,17/05/2019,0137700,"11,000.00",Revenue,Penna Plc,77833
Chorley Borough Council,http://statistics.data.gov.uk/id/local-authority/30UE,Business Support,1095,Business Development & Growth,Fixtures & Fittings - Purchase,20027,Fixtures and Fittings,5010,Fire extinguishers for Primrose Gardens  as per quote dated 21/12/2019,17/05/2019,0136988,"2,407.38",Revenue,Pennine Fire & Safety Limited,69643
Chorley Borough Council,http://statistics.data.gov.uk/id/local-authority/30UE,Unapportionable Central OHeads,1009,Policy & Governance,Service Fees,40056,Services,5027,Occupational Health Charges for January 2019,17/05/2019,0137936,672.75,Revenue,People Asset Management Limited,76487
Chorley Borough Council,http://statistics.data.gov.uk/id/local-authority/30UE,Unapportionable Central OHeads,1009,Policy & Governance,Service Fees,40056,Services,5027,Flu Vaccines x 95 and Flu Vouchers x 25,17/05/2019,0137951,765.00,Revenue,People Asset Management Limited,76487
Chorley Borough Council,http://statistics.data.gov.uk/id/local-authority/30UE,Capital,Capital,Business Development & Growth,Other Capital Related Fees,03024,Capital Expenditure,Capital,Primrose Gardens - Provision of Management Services,10/05/2019,0136131,"2,452.25",Capital,Perfect Circle JV Ltd,76438
Chorley Borough Council,http://statistics.data.gov.uk/id/local-authority/30UE,Capital,Capital,Business Development & Growth,Other Capital Related Fees,03024,Capital Expenditure,Capital,Provision of Project Management Services,10/05/2019,0136954,"6,647.75",Capital,Perfect Circle JV Ltd,76438
Chorley Borough Council,http://statistics.data.gov.uk/id/local-authority/30UE,Capital,Capital,Business Development & Growth,Consultants Fees,03025,Capital Expenditure,Capital,"To provide Project Management for Market Walk and associated schemes(previous order no: PRD052595)",03/05/2019,0137450,"11,171.78",Capital,Perfect Circle JV Ltd,76438
Chorley Borough Council,http://statistics.data.gov.uk/id/local-authority/30UE,Service Management & Support,1009,Customer & Digital,Supplies-Grounds Maintenance,40025,"Equipment, Furniture & Materia",5023,"72 red Begonias72 Yellow Begonias48 Boston ferns24 Peace Lilys36 Ivy",22/05/2019,0138036,717.60,Revenue,Peter H Smith Limited,17088
Chorley Borough Council,http://statistics.data.gov.uk/id/local-authority/30UE,Central Support Services,1009,Early Intervention,Pest Control,20039,Cleaning and Domestic Supplies,5012,Pest Control services for 2019/20 at 390 per week for 48 weeks.,03/05/2019,0137473,292.50,Revenue,Peter L Johnson,16727
Chorley Borough Council,http://statistics.data.gov.uk/id/local-authority/30UE,Central Support Services,1009,Early Intervention,Pest Control,20039,Cleaning and Domestic Supplies,5012,Pest Control services for 2019/20 at 390 per week for 48 weeks.,01/05/2019,0137474,390.00,Revenue,Peter L Johnson,16727
Chorley Borough Council,http://statistics.data.gov.uk/id/local-authority/30UE,Central Support Services,1009,Early Intervention,Pest Control,20039,Cleaning and Domestic Supplies,5012,Pest Control services for 2019/20 at 390 per week for 48 weeks.,08/05/2019,0137691,390.00,Revenue,Peter L Johnson,16727
Chorley Borough Council,http://statistics.data.gov.uk/id/local-authority/30UE,Central Support Services,1009,Early Intervention,Pest Control,20039,Cleaning and Domestic Supplies,5012,Pest Control services for 2019/20 at 390 per week for 48 weeks.,17/05/2019,0137854,292.50,Revenue,Peter L Johnson,16727
Chorley Borough Council,http://statistics.data.gov.uk/id/local-authority/30UE,Central Support Services,1009,Early Intervention,Pest Control,20039,Cleaning and Domestic Supplies,5012,Pest Control services for 2019/20 at 390 per week for 48 weeks.,22/05/2019,0137990,390.00,Revenue,Peter L Johnson,16727
Chorley Borough Council,http://statistics.data.gov.uk/id/local-authority/30UE,Central Support Services,1009,Early Intervention,Pest Control,20039,Cleaning and Domestic Supplies,5012,Pest Control services for 2019/20 at 390 per week for 48 weeks.,29/05/2019,0138140,390.00,Revenue,Peter L Johnson,16727
Chorley Borough Council,http://statistics.data.gov.uk/id/local-authority/30UE,Development Control,1091,Customer & Digital,Professional Fees,40063,Services,5027,Work in relation to Bank Hall Project,03/05/2019,0136952,"3,250.00",Revenue,Pick Everard,76515
Chorley Borough Council,http://statistics.data.gov.uk/id/local-authority/30UE,Capital,Capital,Business Development & Growth,Other Capital Related Fees,03024,Capital Expenditure,Capital,Clerk of Works Primrose Gardens,10/05/2019,0137443,"8,344.84",Capital,Pick Everard,76515
Chorley Borough Council,http://statistics.data.gov.uk/id/local-authority/30UE,Capital,Capital,Business Development & Growth,Other Capital Related Fees,03024,Capital Expenditure,Capital,Clerk of works Primrose Gardens,10/05/2019,0137445,"8,344.84",Capital,Pick Everard,76515
Chorley Borough Council,http://statistics.data.gov.uk/id/local-authority/30UE,Capital,Capital,Business Development & Growth,Other Capital Related Fees,03024,Capital Expenditure,Capital,Clerk of Works Primrose Gardens,10/05/2019,0137446,"8,344.84",Capital,Pick Everard,76515
Chorley Borough Council,http://statistics.data.gov.uk/id/local-authority/30UE,Development Control,1091,Customer & Digital,Planning Application Fees,60149,Customer & Client Receipts,5064,refund plan app 19/00297/OUT,24/05/2019,0137959,"1,386.00",Revenue,Planning Portal Ltd,77808
Chorley Borough Council,http://statistics.data.gov.uk/id/local-authority/30UE,Capital,Capital,Business Development & Growth,Equipment,03014,Capital Expenditure,Capital,"REF11985/3 Cover plates to damaged signs on A6, 1650mm x 817mm rectangular sign, 3mm Grey/Grey High Int Prismatic ",31/05/2019,0136537,277.72,Capital,Poppy Signs Ltd,21898
Chorley Borough Council,http://statistics.data.gov.uk/id/local-authority/30UE,Capital,Capital,Business Development & Growth,Equipment,03014,Capital Expenditure,Capital,Installation of the above described cover plates,31/05/2019,0136537,129.10,Capital,Poppy Signs Ltd,21898
Chorley Borough Council,http://statistics.data.gov.uk/id/local-authority/30UE,Capital,Capital,Business Development & Growth,Equipment,03014,Capital Expenditure,Capital,Survey/Design,31/05/2019,0136537,30.00,Capital,Poppy Signs Ltd,21898
Chorley Borough Council,http://statistics.data.gov.uk/id/local-authority/30UE,Capital,Capital,Business Development & Growth,Equipment,03014,Capital Expenditure,Capital,Carriage,31/05/2019,0136537,30.00,Capital,Poppy Signs Ltd,21898
Chorley Borough Council,http://statistics.data.gov.uk/id/local-authority/30UE,Elections,1012,Policy & Governance,Rent/Hire Of Premises,20017,Premises Rents,5007,"8th Feb 2019 Contingency plan for additional mobile Poll Stations within the Borough of Chorley.",31/05/2019,0137742,400.00,Revenue,Portakabin Limited,51521
Chorley Borough Council,http://statistics.data.gov.uk/id/local-authority/30UE,Elections,1012,Policy & Governance,Rent/Hire Of Premises,20017,Premises Rents,5007,"23rd May 2019 Supply of PK282 Pacemaker building with chemical toilet to bat the White Horse Car Park, PR6 9L",31/05/2019,0138169,"2,765.00",Revenue,Portakabin Limited,51521
Chorley Borough Council,http://statistics.data.gov.uk/id/local-authority/30UE,Democratic Represent and  Mgnt,1007,Policy & Governance,Performing Rights Society Fees,40148,Grants and Subscriptions,5031,Music Licence fees for period 06-01-19 to 05-04-19.,03/05/2019,0137616,585.56,Revenue,PPL PRS Ltd,77455
Chorley Borough Council,http://statistics.data.gov.uk/id/local-authority/30UE,Private Sector HSG Renewal,1073,Early Intervention,External Contractor,40198,Miscellaneous Expenses,5034,Joint Marketing Activities,17/05/2019,0137933,350.00,Revenue,Preston Care and Repair,50018
Chorley Borough Council,http://statistics.data.gov.uk/id/local-authority/30UE,Private Sector HSG Renewal,1073,Early Intervention,External Contractor,40198,Miscellaneous Expenses,5034,Provision of Handyperson services (funded by LCC IHIS) Q1 2019/20,24/05/2019,0137978,"7,405.75",Revenue,Preston Care and Repair,50018
Chorley Borough Council,http://statistics.data.gov.uk/id/local-authority/30UE,Private Sector HSG Renewal,1073,Early Intervention,Miscellaneous Expenses,40200,Miscellaneous Expenses,5034,Costs delivering Affordable Warmth Programme of boiler services & draught-proofing. Funded by LCC Affordable Warmth Fund,22/05/2019,0138019,"2,165.00",Revenue,Preston Care and Repair,50018
Chorley Borough Council,http://statistics.data.gov.uk/id/local-authority/30UE,Capital,Capital,Business Development & Growth,Main Contractor,03007,Capital Expenditure,Capital,Order for works to the switch room base plinth,01/05/2019,0137497,"13,500.00",Capital,Primrose Holdings 1995 Ltd,17786
Chorley Borough Council,http://statistics.data.gov.uk/id/local-authority/30UE,Business Support,1095,Business Development & Growth,Miscellaneous Expenses,40200,Miscellaneous Expenses,5034,Digital Office Hub - Electrical Connection and GRP Housing,10/05/2019,0137498,"10,308.89",Revenue,Primrose Holdings 1995 Ltd,17786
Chorley Borough Council,http://statistics.data.gov.uk/id/local-authority/30UE,Elections,1012,Policy & Governance,Tools & Equipment - Purchase,40003,"Equipment, Furniture & Materia",5023,130 grass skirts  (10 x 25) 10 grass skirts (10(,17/05/2019,0137967,675.00,Revenue,Print Image Facilities LLP,57870
Chorley Borough Council,http://statistics.data.gov.uk/id/local-authority/30UE,Elections,1012,Policy & Governance,Postages,40082,Communication and Computing,5028,postage for poll cards Eccleston  & Mawdesley By Election,24/05/2019,0138094,"1,926.72",Revenue,Print Image Facilities LLP,57870
Chorley Borough Council,http://statistics.data.gov.uk/id/local-authority/30UE,Other Short Term Creditors,,Policy & Governance,General Balances,00100,Balance Sheet,Balance,salary ded,01/05/2019,0137560,"2,373.50",Revenue,PRUDENTIAL,18178
Chorley Borough Council,http://statistics.data.gov.uk/id/local-authority/30UE,Other Short Term Creditors,,Policy & Governance,General Balances,00100,Balance Sheet,Balance,Salary deductions,31/05/2019,0138161,"2,071.50",Revenue,PRUDENTIAL,18178
Chorley Borough Council,http://statistics.data.gov.uk/id/local-authority/30UE,Democratic Represent and  Mgnt,1007,Business Development & Growth,External Contractor,40198,Miscellaneous Expenses,5034,"5ft trough water metre and stop tap, 35m of 25mm alcathene, 2m of alcathene at the gate so United Utilities can connect.",22/05/2019,0137999,800.00,Revenue,Red Rose Building Maintenance,77387
Chorley Borough Council,http://statistics.data.gov.uk/id/local-authority/30UE,Democratic Represent and  Mgnt,1007,Business Development & Growth,External Contractor,40198,Miscellaneous Expenses,5034,materials,22/05/2019,0137999,850.00,Revenue,Red Rose Building Maintenance,77387
Chorley Borough Council,http://statistics.data.gov.uk/id/local-authority/30UE,Private Sector HSG Renewal,1073,Early Intervention,Miscellaneous Expenses,40200,Miscellaneous Expenses,5034,contribution,08/05/2019,0137505,"1,024.00",Revenue,Rhea Projects Ltd,77753
Chorley Borough Council,http://statistics.data.gov.uk/id/local-authority/30UE,Private Sector HSG Renewal,1073,Early Intervention,Miscellaneous Expenses,40200,Miscellaneous Expenses,5034,contribution,08/05/2019,0137599,915.00,Revenue,Rhea Projects Ltd,77753
Chorley Borough Council,http://statistics.data.gov.uk/id/local-authority/30UE,Non Domestic Rates Redistribut,,Policy & Governance,Levy to Business Rates Pool,49003,Expenditure not in NCOS,,2018/19,03/05/2019,0137670,"1,818.18",Revenue,Ribble Valley Borough Council,77109
Chorley Borough Council,http://statistics.data.gov.uk/id/local-authority/30UE,Capital,Capital,Business Development & Growth,Surveyors Fees,03021,Capital Expenditure,Capital,Provision of Quantity Surveying Services,22/05/2019,0137434,"2,500.00",Capital,Rider Levett Bucknall,67527
Chorley Borough Council,http://statistics.data.gov.uk/id/local-authority/30UE,Service Management & Support,1009,Customer & Digital,Supplies-Grounds Maintenance,40025,"Equipment, Furniture & Materia",5023,40 x Trustee Amenity 5 litre,01/05/2019,0137482,"1,105.00",Revenue,Rigby Taylor Ltd,16299
Chorley Borough Council,http://statistics.data.gov.uk/id/local-authority/30UE,Unapportionable Central OHeads,1009,Policy & Governance,Processional Routes,40177,Miscellaneous Expenses,5034,Traffic Management services for the Mayor of Chorley`s Civic Sunday on Sunday 19th May 2019.,22/05/2019,0138068,565.00,Revenue,Road Safety Services Ltd,69457
Chorley Borough Council,http://statistics.data.gov.uk/id/local-authority/30UE,Unapportionable Central OHeads,1009,Policy & Governance,Exhibitions & Special Events,40158,Miscellaneous Expenses,5034,chorley cakes,29/05/2019,0138127,"1,000.00",Revenue,Rosie Posies,76102
Chorley Borough Council,http://statistics.data.gov.uk/id/local-authority/30UE,Development Control,1091,Business Development & Growth,General Subscriptions,40146,Grants and Subscriptions,5031,1 year BCIS renewal,22/05/2019,0129896,"2,000.00",Revenue,Royal Institute of Chartered Surveyors,70239
Chorley Borough Council,http://statistics.data.gov.uk/id/local-authority/30UE,Development Control,1091,Business Development & Growth,General Subscriptions,40146,Grants and Subscriptions,5031,G5410 - BCIS Online 12 month subscription for 2019/20,22/05/2019,0138033,"2,000.00",Revenue,Royal Institute of Chartered Surveyors,70239
Chorley Borough Council,http://statistics.data.gov.uk/id/local-authority/30UE,Elections,1012,Policy & Governance,Postages,40082,Communication and Computing,5028,"postal vote returns, borough elections 2019",01/05/2019,0137582,"2,219.66",Revenue,Royal Mail Group Plc,17522
Chorley Borough Council,http://statistics.data.gov.uk/id/local-authority/30UE,Elections,1012,Policy & Governance,Postages,40082,Communication and Computing,5028,postal votes for borough elections 2 may 2019 - delivery,10/05/2019,0137722,"9,591.50",Revenue,Royal Mail Group Plc,17522
Chorley Borough Council,http://statistics.data.gov.uk/id/local-authority/30UE,Elections,1012,Policy & Governance,Postages,40082,Communication and Computing,5028,"postal vote returns, borough elections 2019",15/05/2019,0137905,"1,067.09",Revenue,Royal Mail Group Plc,17522
Chorley Borough Council,http://statistics.data.gov.uk/id/local-authority/30UE,Elections,1012,Policy & Governance,Postages,40082,Communication and Computing,5028,"business reply for electoral registration April 2019 - October 2019RRHA-KZCB-CAXA",15/05/2019,0137906,288.26,Revenue,Royal Mail Group Plc,17522
Chorley Borough Council,http://statistics.data.gov.uk/id/local-authority/30UE,Elections,1012,Policy & Governance,Postages,40082,Communication and Computing,5028,"postal vote returns, borough elections 2019",15/05/2019,0137927,"2,530.20",Revenue,Royal Mail Group Plc,17522
Chorley Borough Council,http://statistics.data.gov.uk/id/local-authority/30UE,Elections,1012,Policy & Governance,Postages,40082,Communication and Computing,5028,postal votes for European elections 23 may 1st batch,22/05/2019,0137995,"11,415.04",Revenue,Royal Mail Group Plc,17522
Chorley Borough Council,http://statistics.data.gov.uk/id/local-authority/30UE,Capital,Capital,Business Development & Growth,Other Capital Related Fees,03024,Capital Expenditure,Capital,Professional fees - interim account to end February 2019,17/05/2019,0137433,"1,500.00",Capital,RPS Consulting Services Ltd,20128
Chorley Borough Council,http://statistics.data.gov.uk/id/local-authority/30UE,Democratic Represent and  Mgnt,1007,Business Development & Growth,Electricity,20013,Energy Costs,5006,1/4/2019 to 1/5/2019,17/05/2019,0137950,259.15,Revenue,Scottish Power,18998
Chorley Borough Council,http://statistics.data.gov.uk/id/local-authority/30UE,Unapportionable Central OHeads,1009,Policy & Governance,Agency Staff,13000,Direct Employee Expenses,5001,Agency costs for temporary Locum Senior Paralegal from 8 April 2019,03/05/2019,0137556,677.25,Revenue,Sellick Partnership Limited,76554
Chorley Borough Council,http://statistics.data.gov.uk/id/local-authority/30UE,Unapportionable Central OHeads,1009,Policy & Governance,Agency Staff,13000,Direct Employee Expenses,5001,Agency costs for temporary Locum Senior Paralegal from 8 April 2019,08/05/2019,0137705,763.25,Revenue,Sellick Partnership Limited,76554
Chorley Borough Council,http://statistics.data.gov.uk/id/local-authority/30UE,Unapportionable Central OHeads,1009,Policy & Governance,Agency Staff,13000,Direct Employee Expenses,5001,Agency costs for temporary Locum Senior Paralegal from 8 April 2019,15/05/2019,0137894,483.75,Revenue,Sellick Partnership Limited,76554
Chorley Borough Council,http://statistics.data.gov.uk/id/local-authority/30UE,Unapportionable Central OHeads,1009,Policy & Governance,Agency Staff,13000,Direct Employee Expenses,5001,Agency costs for temporary Locum Senior Paralegal from 8 April 2019,22/05/2019,0138017,860.00,Revenue,Sellick Partnership Limited,76554
Chorley Borough Council,http://statistics.data.gov.uk/id/local-authority/30UE,Elections,1012,Policy & Governance,Stationery,40050,"Printing, Stationery & General",5026,90 Euro Sundry Packs - EPSDR,15/05/2019,0137812,"1,341.00",Revenue,Shaw & Sons Ltd,18092
Chorley Borough Council,http://statistics.data.gov.uk/id/local-authority/30UE,Elections,1012,Policy & Governance,Stationery,40050,"Printing, Stationery & General",5026,LE-6 guidance to voters x 175,15/05/2019,0137812,143.06,Revenue,Shaw & Sons Ltd,18092
Chorley Borough Council,http://statistics.data.gov.uk/id/local-authority/30UE,Elections,1012,Policy & Governance,Stationery,40050,"Printing, Stationery & General",5026,EP - 7 Polling Booth Notices x 325,15/05/2019,0137812,153.56,Revenue,Shaw & Sons Ltd,18092
Chorley Borough Council,http://statistics.data.gov.uk/id/local-authority/30UE,Economic Development,1096,Business Development & Growth,General Subscriptions,40146,Grants and Subscriptions,5031,Annual Membership Shout Network: (12 Months) & Monthly Subs 2019 - 2020.,08/05/2019,0137698,575.04,Revenue,Shout Network Limited,69551
Chorley Borough Council,http://statistics.data.gov.uk/id/local-authority/30UE,Development Control,1091,Customer & Digital,Consultants` Fees,40077,Services,5027,ICT Consultancy April,29/05/2019,0137929,"1,059.80",Revenue,Simon Daniel Booth,57624
Chorley Borough Council,http://statistics.data.gov.uk/id/local-authority/30UE,Planning Policy,1092,Policy & Governance,Professional Fees,40063,Services,5027,Counsel advice relating to the NPPF and standard housing methodology March 2019,22/05/2019,0138016,"3,000.00",Revenue,Simon Pickles,77744
Chorley Borough Council,http://statistics.data.gov.uk/id/local-authority/30UE,Service Management & Support,1009,Customer & Digital,Supplies-Grounds Maintenance,40025,"Equipment, Furniture & Materia",5023,Supply 2 x galvanised bow top fence panels for Astley Park,22/05/2019,0137939,776.00,Revenue,SM Sheet Metal Ltd,21243
Chorley Borough Council,http://statistics.data.gov.uk/id/local-authority/30UE,Unapportionable Central OHeads,1009,Customer & Digital,General Repairs - Reactive,20004,Repairs Maintenance & Alts,5005,Supply and fit metal gate for isolation area,22/05/2019,0137940,550.00,Revenue,SM Sheet Metal Ltd,21243
Chorley Borough Council,http://statistics.data.gov.uk/id/local-authority/30UE,Service Management & Support,1009,Customer & Digital,Protective Clothing,40040,"Clothing, Uniforms and Laundry",5025,"High-Vis, Yellow, PU, waterproof un-lined, outer jacket, Supertouch.c/w Chorley Council logo front and back. Med - 3Large -",01/05/2019,0137428,249.70,Revenue,Smart Image Workwear,21064
Chorley Borough Council,http://statistics.data.gov.uk/id/local-authority/30UE,Service Management & Support,1009,Customer & Digital,Protective Clothing,40040,"Clothing, Uniforms and Laundry",5025,"High-Vis, Yellow, waterproof, windproof, breathable outer trouser small - 4, Med - 5, Lge - 5, X Lge - 2",01/05/2019,0137428,194.40,Revenue,Smart Image Workwear,21064
Chorley Borough Council,http://statistics.data.gov.uk/id/local-authority/30UE,Service Management & Support,1009,Customer & Digital,Protective Clothing,40040,"Clothing, Uniforms and Laundry",5025,"High-Vis, Yellow, Waterproof Bomber Jacket Orbit  @15.40 each small - 2 XXL - 1",01/05/2019,0137428,46.20,Revenue,Smart Image Workwear,21064
Chorley Borough Council,http://statistics.data.gov.uk/id/local-authority/30UE,Central Support Services,1009,Early Intervention,Miscellaneous Expenses,40200,Miscellaneous Expenses,5034,"Mediation 3 cases, 3 x ADDRESS REDACTED  Travel expenses +7 meetings, ",10/05/2019,0137843,"2,130.00",Revenue,Smile Mediation Ltd,62536
Chorley Borough Council,http://statistics.data.gov.uk/id/local-authority/30UE,Central Support Services,1009,Customer & Digital,IT Software - Annual Licences,40101,Communication and Computing,5028,Microsoft License Renewals 3 years,29/05/2019,0137856,"16,794.72",Revenue,Softcat Ltd,69996
Chorley Borough Council,http://statistics.data.gov.uk/id/local-authority/30UE,Central Support Services,1009,Customer & Digital,IT Software - Annual Licences,40101,Communication and Computing,5028,Creative Cloud for teams All Apps Team Licensing Subscription New,17/05/2019,0137949,"1,367.10",Revenue,Softcat Ltd,69996
Chorley Borough Council,http://statistics.data.gov.uk/id/local-authority/30UE,Central Support Services,1009,Customer & Digital,IT Software - Annual Licences,40101,Communication and Computing,5028,30 x O365E3 ShrdSvr All Language SubsVL MVL AddOn touserECALw/OPP @ 9.68,31/05/2019,0138121,290.40,Revenue,Softcat Ltd,69996
Chorley Borough Council,http://statistics.data.gov.uk/id/local-authority/30UE,Central Support Services,1009,Customer & Digital,IT Software - Annual Licences,40101,Communication and Computing,5028,"O365E1AddOn ShrdSvr All Language SubsVL MVL AddOn touserCoreCALx 49",24/05/2019,0138122,"1,191.19",Revenue,Softcat Ltd,69996
Chorley Borough Council,http://statistics.data.gov.uk/id/local-authority/30UE,Central Support Services,1009,Customer & Digital,IT Software - Annual Licences,40101,Communication and Computing,5028,"EntMobandSecE3 Shared All Language MonthlySub Addon ToUserECALx30",29/05/2019,0138149,689.40,Revenue,Softcat Ltd,69996
Chorley Borough Council,http://statistics.data.gov.uk/id/local-authority/30UE,Central Support Services,1009,Customer & Digital,IT Software - Annual Licences,40101,Communication and Computing,5028,O365E3 ShrdSvr All Language SubsVL MVL AddOn touserECALw/OPP x284,29/05/2019,0138151,"2,749.12",Revenue,Softcat Ltd,69996
Chorley Borough Council,http://statistics.data.gov.uk/id/local-authority/30UE,Corporate Management,1008,Policy & Governance,Conferences - Staff,40120,Expenses,5030,Training and development for 12 months,24/05/2019,0137975,250.00,Revenue,Solace Enterprises Ltd,17603
Chorley Borough Council,http://statistics.data.gov.uk/id/local-authority/30UE,Planning Policy,1092,Business Development & Growth,Professional Fees,40063,Services,5027,Employment Land Review - Chorley part 2016/2017,01/05/2019,0137468,"13,837.50",Revenue,South Ribble Borough Council,17889
Chorley Borough Council,http://statistics.data.gov.uk/id/local-authority/30UE,Homelessness,1075,Early Intervention,Other Contributions,40145,Grants and Subscriptions,5031,Sanctuary Scheme Recharge Costs (April 2018 - March 2019),31/05/2019,0138192,"3,610.25",Revenue,South Ribble Borough Council,17889
Chorley Borough Council,http://statistics.data.gov.uk/id/local-authority/30UE,Democratic Represent and  Mgnt,1007,Early Intervention,Consultants` Fees,40077,Services,5027,Waiver approved - Leisure Contract,08/05/2019,0137609,"2,291.10",Revenue,Sport Leisure and Culture Consultancy,77651
Chorley Borough Council,http://statistics.data.gov.uk/id/local-authority/30UE,Control Accounts,Control,Policy & Governance,Manual Control Account,00001,Balance Sheet,Balance,refund,24/05/2019,0138062,500.00,Revenue,Stocks Hall Care Homes Ltd,78037
Chorley Borough Council,http://statistics.data.gov.uk/id/local-authority/30UE,Business Support,1095,Customer & Digital,Tools & Equipment - Purchase,40003,"Equipment, Furniture & Materia",5023,"1100 litre galvanised bin with BLACK reverse lid.Quantity : 10Unit price : 237.50",01/05/2019,0137247,"2,375.00",Revenue,Storm Environmental Limited,77802
Chorley Borough Council,http://statistics.data.gov.uk/id/local-authority/30UE,Business Support,1095,Customer & Digital,Tools & Equipment - Purchase,40003,"Equipment, Furniture & Materia",5023,"1100 litre galvanised bin with BROWN reversible lid.Quantity : 6Unit Cost : 241:50",01/05/2019,0137247,"1,449.00",Revenue,Storm Environmental Limited,77802
Chorley Borough Council,http://statistics.data.gov.uk/id/local-authority/30UE,Business Support,1095,Customer & Digital,Tools & Equipment - Purchase,40003,"Equipment, Furniture & Materia",5023,"1100 litre galvanised bin with BLUE reversible lid.Quantity : 4Unit Cost : 241:50",01/05/2019,0137247,966.00,Revenue,Storm Environmental Limited,77802
Chorley Borough Council,http://statistics.data.gov.uk/id/local-authority/30UE,Capital,Capital,Business Development & Growth,Other Capital Related Fees,03024,Capital Expenditure,Capital,"Public�Realm�&�Highway�Design�Engineering�for�30�months, June2017 December2019��Invoiced�monthly/days�worked basis",03/05/2019,0137641,"2,250.00",Capital,Street Civil Engineering Limited,76750
Chorley Borough Council,http://statistics.data.gov.uk/id/local-authority/30UE,Recreation & Sport,1037,Early Intervention,Planned Maintenance,20006,Repairs Maintenance & Alts,5005,"counter under servery hatch, units to extend to end wall, fit stainless steel WHB Tile splashback on completion.",01/05/2019,0137517,"1,600.00",Revenue,Stringfellow Bldg Cntrctrs Ltd,17893
Chorley Borough Council,http://statistics.data.gov.uk/id/local-authority/30UE,Recreation & Sport,1037,Early Intervention,Planned Maintenance,20006,Repairs Maintenance & Alts,5005,"To replacewater boiler to opposite side of window, run off existing spur above.Quote Ref. CC194",01/05/2019,0137517,180.00,Revenue,Stringfellow Bldg Cntrctrs Ltd,17893
Chorley Borough Council,http://statistics.data.gov.uk/id/local-authority/30UE,Recreation & Sport,1037,Early Intervention,Planned Maintenance,20006,Repairs Maintenance & Alts,5005,"To supply / fit 9`` extract fan above old water boiler position, reusing water boiler spur. Quote Ref. CC194",01/05/2019,0137517,480.00,Revenue,Stringfellow Bldg Cntrctrs Ltd,17893
Chorley Borough Council,http://statistics.data.gov.uk/id/local-authority/30UE,Recreation & Sport,1037,Early Intervention,Planned Maintenance,20006,Repairs Maintenance & Alts,5005,To supply and fit lockable aluminium roller shutter to inside face of servery opening.Quote Ref. CC194,01/05/2019,0137517,280.00,Revenue,Stringfellow Bldg Cntrctrs Ltd,17893
Chorley Borough Council,http://statistics.data.gov.uk/id/local-authority/30UE,Unapportionable Central OHeads,1009,Business Development & Growth,General Repairs - Reactive,20004,Repairs Maintenance & Alts,5005,Reactive repairs blanket order Feb 2019 onwards,01/05/2019,0137524,300.75,Revenue,Stringfellow Bldg Cntrctrs Ltd,17893
Chorley Borough Council,http://statistics.data.gov.uk/id/local-authority/30UE,Unapportionable Central OHeads,1009,Business Development & Growth,General Repairs - Reactive,20004,Repairs Maintenance & Alts,5005,Reactive repairs blanket order Feb 2019 onwards,10/05/2019,0137769,430.19,Revenue,Stringfellow Bldg Cntrctrs Ltd,17893
Chorley Borough Council,http://statistics.data.gov.uk/id/local-authority/30UE,Unapportionable Central OHeads,1009,Business Development & Growth,General Repairs - Reactive,20004,Repairs Maintenance & Alts,5005,Reactive repairs blanket order Feb 2019 onwards,10/05/2019,0137775,255.24,Revenue,Stringfellow Bldg Cntrctrs Ltd,17893
Chorley Borough Council,http://statistics.data.gov.uk/id/local-authority/30UE,Unapportionable Central OHeads,1009,Business Development & Growth,General Repairs - Reactive,20004,Repairs Maintenance & Alts,5005,Reactive repairs April onwards,17/05/2019,0137783,270.38,Revenue,Stringfellow Bldg Cntrctrs Ltd,17893
Chorley Borough Council,http://statistics.data.gov.uk/id/local-authority/30UE,Unapportionable Central OHeads,1009,Business Development & Growth,General Repairs - Reactive,20004,Repairs Maintenance & Alts,5005,Reactive repairs blanket order Feb 2019 onwards,10/05/2019,0137784,253.00,Revenue,Stringfellow Bldg Cntrctrs Ltd,17893
Chorley Borough Council,http://statistics.data.gov.uk/id/local-authority/30UE,Unapportionable Central OHeads,1009,Business Development & Growth,Asset Maintenance Fund,20012,Repairs Maintenance & Alts,5005,Reactive works at refugee properties,24/05/2019,0137793,440.80,Revenue,Stringfellow Bldg Cntrctrs Ltd,17893
Chorley Borough Council,http://statistics.data.gov.uk/id/local-authority/30UE,Unapportionable Central OHeads,1009,Business Development & Growth,Asset Maintenance Fund,20012,Repairs Maintenance & Alts,5005,On-going reactive repairs at Syrian Refugee Properties,10/05/2019,0137794,383.78,Revenue,Stringfellow Bldg Cntrctrs Ltd,17893
Chorley Borough Council,http://statistics.data.gov.uk/id/local-authority/30UE,Capital,Capital,Early Intervention,Grants,03002,Capital Expenditure,Capital,ADDRESS REDACTED,22/05/2019,0138013,"3,181.99",Capital,Stringfellow Bldg Cntrctrs Ltd,17893
Chorley Borough Council,http://statistics.data.gov.uk/id/local-authority/30UE,Capital,Capital,Early Intervention,Grants,03002,Capital Expenditure,Capital,ADDRESS REDACTED,22/05/2019,0138034,"15,533.80",Capital,Stringfellow Bldg Cntrctrs Ltd,17893
Chorley Borough Council,http://statistics.data.gov.uk/id/local-authority/30UE,Economic Development,1096,Business Development & Growth,Asset Maintenance Fund,20012,Repairs Maintenance & Alts,5005,"Works on Unit 31 Chorley Covered Market:Water supply to sink position",24/05/2019,0138125,210.76,Revenue,Stringfellow Bldg Cntrctrs Ltd,17893
Chorley Borough Council,http://statistics.data.gov.uk/id/local-authority/30UE,Economic Development,1096,Business Development & Growth,Asset Maintenance Fund,20012,Repairs Maintenance & Alts,5005,Unblock waste outlet and provide waste to sink outlet,24/05/2019,0138125,197.49,Revenue,Stringfellow Bldg Cntrctrs Ltd,17893
Chorley Borough Council,http://statistics.data.gov.uk/id/local-authority/30UE,Economic Development,1096,Business Development & Growth,Asset Maintenance Fund,20012,Repairs Maintenance & Alts,5005,"Provide sink unit, worktops, taps and bowls",24/05/2019,0138125,501.32,Revenue,Stringfellow Bldg Cntrctrs Ltd,17893
Chorley Borough Council,http://statistics.data.gov.uk/id/local-authority/30UE,Economic Development,1096,Business Development & Growth,Asset Maintenance Fund,20012,Repairs Maintenance & Alts,5005,"Provide water heater (TO BE RECHARGED TO TRADER AS AGREED)",24/05/2019,0138125,378.17,Revenue,Stringfellow Bldg Cntrctrs Ltd,17893
Chorley Borough Council,http://statistics.data.gov.uk/id/local-authority/30UE,Central Support Services,1009,Business Development & Growth,Miscellaneous Expenses,40200,Miscellaneous Expenses,5034,Hire of 1x 14 yard skip for St George`s Primary School Community Garden Clean up day.  Drop off skip 28th Mar collect 29th ,17/05/2019,0137683,239.18,Revenue,SUEZ R&R UK LTD,17615
Chorley Borough Council,http://statistics.data.gov.uk/id/local-authority/30UE,Democratic Represent and  Mgnt,1007,Business Development & Growth,Refuse Collection,20037,Cleaning and Domestic Supplies,5012,"Provision of Trade waste collection for TATTON CC (Aug 2018- March 2019) (1 x 1100 litre bin per fortnight)",17/05/2019,0137683,20.81,Revenue,SUEZ R&R UK LTD,17615
Chorley Borough Council,http://statistics.data.gov.uk/id/local-authority/30UE,Business Support,1095,Business Development & Growth,Refuse Collection,20037,Cleaning and Domestic Supplies,5012,"Market Walk Yard 1 - General Waste, compacted - 35yd roll on/roll off skip from compactor @64.83 per exchange ",17/05/2019,0137683,100.00,Revenue,SUEZ R&R UK LTD,17615
Chorley Borough Council,http://statistics.data.gov.uk/id/local-authority/30UE,Business Support,1095,Business Development & Growth,Refuse Collection,20037,Cleaning and Domestic Supplies,5012,"to provide a bakkie cage for cardboard in service yard 3 at Market Walk Shopping Centre, 52 weeks @15 per week, n",17/05/2019,0137683,12.00,Revenue,SUEZ R&R UK LTD,17615
Chorley Borough Council,http://statistics.data.gov.uk/id/local-authority/30UE,Business Support,1095,Business Development & Growth,Refuse Collection,20037,Cleaning and Domestic Supplies,5012,Market Walk Yard 1 - General Waste compacted - 35 yard roll on/roll off skip from compactor @64.83 per exchange,15/05/2019,0137849,64.83,Revenue,SUEZ R&R UK LTD,17615
Chorley Borough Council,http://statistics.data.gov.uk/id/local-authority/30UE,Business Support,1095,Business Development & Growth,Refuse Collection,20037,Cleaning and Domestic Supplies,5012,Market Walk Yard 1 - General Waste compacted - 35 yard roll on/roll off skip from compactor ,15/05/2019,0137849,974.40,Revenue,SUEZ R&R UK LTD,17615
Chorley Borough Council,http://statistics.data.gov.uk/id/local-authority/30UE,Business Support,1095,Business Development & Growth,Refuse Collection,20037,Cleaning and Domestic Supplies,5012,Market Walk Yard 1 - 35 yard roll on/roll off cardboard skip @25 rental per month - no haulage or disposal costs,15/05/2019,0137849,25.00,Revenue,SUEZ R&R UK LTD,17615
Chorley Borough Council,http://statistics.data.gov.uk/id/local-authority/30UE,Business Support,1095,Business Development & Growth,Refuse Collection,20037,Cleaning and Domestic Supplies,5012,Market Walk Yard 2 - 35 yard roll on/roll off cardboard skip @25 rental per month - no haulage or disposal costs,15/05/2019,0137849,25.00,Revenue,SUEZ R&R UK LTD,17615
Chorley Borough Council,http://statistics.data.gov.uk/id/local-authority/30UE,Business Support,1095,Business Development & Growth,Refuse Collection,20037,Cleaning and Domestic Supplies,5012,Market Walk Yard 2 - 8 yard FEL for general waste @48.07 per lift - estimated at 26 per year Total 1249.82,15/05/2019,0137849,209.10,Revenue,SUEZ R&R UK LTD,17615
Chorley Borough Council,http://statistics.data.gov.uk/id/local-authority/30UE,Business Support,1095,Business Development & Growth,Refuse Collection,20037,Cleaning and Domestic Supplies,5012,Market Walk Yard 3 - 35 yard roll on/roll off cardboard skip @25 rental per month - no haulage or disposal costs Total 300,15/05/2019,0137849,25.00,Revenue,SUEZ R&R UK LTD,17615
Chorley Borough Council,http://statistics.data.gov.uk/id/local-authority/30UE,Business Support,1095,Business Development & Growth,Refuse Collection,20037,Cleaning and Domestic Supplies,5012,Market Walk Yard 3 - 35 yard roll on/roll off plastic skip @25 rental per month - no haulage or disposal costs Total 300,15/05/2019,0137849,25.00,Revenue,SUEZ R&R UK LTD,17615
Chorley Borough Council,http://statistics.data.gov.uk/id/local-authority/30UE,Business Support,1095,Business Development & Growth,Refuse Collection,20037,Cleaning and Domestic Supplies,5012,Market Walk Yard 3 - 2 x 8 yard FEL general waste @48.07 per lift (per FEL) - estimated 26 lifts per FEL per year 2499.64,15/05/2019,0137849,418.21,Revenue,SUEZ R&R UK LTD,17615
Chorley Borough Council,http://statistics.data.gov.uk/id/local-authority/30UE,Service Management & Support,1009,Customer & Digital,Refuse Collection,20037,Cleaning and Domestic Supplies,5012,roro Bengall Street,17/05/2019,0137850,"2,272.13",Revenue,SUEZ R&R UK LTD,17615
Chorley Borough Council,http://statistics.data.gov.uk/id/local-authority/30UE,Unapportionable Central OHeads,1009,Customer & Digital,Refuse Collection,20037,Cleaning and Domestic Supplies,5012,"Provision of trade waste collections for Civic Offices, Union St. (1 APRIL -30 June 2019) 6 x 1100 litre per week.",15/05/2019,0137855,250.30,Revenue,SUEZ R&R UK LTD,17615
Chorley Borough Council,http://statistics.data.gov.uk/id/local-authority/30UE,Unapportionable Central OHeads,1009,Customer & Digital,Refuse Collection,20037,Cleaning and Domestic Supplies,5012,Provision of trade waste collections for TOWN HALL Market Street (1 APRIL -30 June 2019)6 x 1100 litre per week.,15/05/2019,0137855,250.30,Revenue,SUEZ R&R UK LTD,17615
Chorley Borough Council,http://statistics.data.gov.uk/id/local-authority/30UE,Community Development,1097,Customer & Digital,Refuse Collection,20037,Cleaning and Domestic Supplies,5012,"Provision of trade waste collections for MP`s Office, 35-39 Market Street. (1 APRIL -30 June 2019) 1x 1100 litre per week.",15/05/2019,0137855,41.72,Revenue,SUEZ R&R UK LTD,17615
Chorley Borough Council,http://statistics.data.gov.uk/id/local-authority/30UE,Democratic Represent and  Mgnt,1007,Customer & Digital,Refuse Collection,20037,Cleaning and Domestic Supplies,5012,"Provision of trade waste collections for Astley Hall (1 APRIL -30 June 2019) 1 x 1100 litre per week.",15/05/2019,0137855,41.72,Revenue,SUEZ R&R UK LTD,17615
Chorley Borough Council,http://statistics.data.gov.uk/id/local-authority/30UE,Democratic Represent and  Mgnt,1007,Customer & Digital,Refuse Collection,20037,Cleaning and Domestic Supplies,5012,"Provision of trade waste collections for Astley Village CC  (1 APRIL -30 June 2019) 1x 360 litre per week.",15/05/2019,0137855,28.75,Revenue,SUEZ R&R UK LTD,17615
Chorley Borough Council,http://statistics.data.gov.uk/id/local-authority/30UE,Democratic Represent and  Mgnt,1007,Customer & Digital,Refuse Collection,20037,Cleaning and Domestic Supplies,5012,"Provision of trade waste collections for Eaves Green CC  (1 APRIL -30 June 2019) 1x 360 litre per week.",15/05/2019,0137855,29.10,Revenue,SUEZ R&R UK LTD,17615
Chorley Borough Council,http://statistics.data.gov.uk/id/local-authority/30UE,Recreation & Sport,1037,Customer & Digital,Miscellaneous Expenses,40200,Miscellaneous Expenses,5034,Provision of trade waste collections for Buttermere Green CC  (1 APRIL -30 June 2019) 1x 360 litre per week.,15/05/2019,0137855,28.75,Revenue,SUEZ R&R UK LTD,17615
Chorley Borough Council,http://statistics.data.gov.uk/id/local-authority/30UE,Democratic Represent and  Mgnt,1007,Customer & Digital,Refuse Collection,20037,Cleaning and Domestic Supplies,5012,"Provision of trade waste collections for Clayton Brook Village Hall (1 APRIL -30 June 2019) 6 x Refuse sack per week.",15/05/2019,0137855,22.19,Revenue,SUEZ R&R UK LTD,17615
Chorley Borough Council,http://statistics.data.gov.uk/id/local-authority/30UE,Recreation & Sport,1037,Customer & Digital,Miscellaneous Expenses,40200,Miscellaneous Expenses,5034,"Provision of trade waste collections for Lancaster Way CC  (1 APRIL -30 June 2019) 1x 360 litre per week.",15/05/2019,0137855,28.75,Revenue,SUEZ R&R UK LTD,17615
Chorley Borough Council,http://statistics.data.gov.uk/id/local-authority/30UE,Unapportionable Central OHeads,1009,Policy & Governance,Pensions Increase Act Payments,18005,Indirect Employee Expenses,5002,29/05/2019,31/05/2019,0138194,"2,818.16",Revenue,Tameside MBC-Gmpf,17034
Chorley Borough Council,http://statistics.data.gov.uk/id/local-authority/30UE,Business Support,1095,Early Intervention,Fixtures & Fittings - Purchase,20027,Fixtures and Fittings,5010,Fit out of the communal areas at Primrose Gardens,22/05/2019,0137832,"30,298.20",Revenue,Teal,78005
Chorley Borough Council,http://statistics.data.gov.uk/id/local-authority/30UE,Business Support,1095,Early Intervention,Fixtures & Fittings - Purchase,20027,Fixtures and Fittings,5010,Furniture for Primrose Gardens,15/05/2019,0137833,"3,159.00",Revenue,Teal,78005
Chorley Borough Council,http://statistics.data.gov.uk/id/local-authority/30UE,Business Support,1095,Early Intervention,Fixtures & Fittings - Purchase,20027,Fixtures and Fittings,5010,Internal planters for Primrose Gardens,22/05/2019,0138070,"1,701.00",Revenue,Teal,78005
Chorley Borough Council,http://statistics.data.gov.uk/id/local-authority/30UE,Central Support Services,1009,Customer & Digital,Computer Equipment-Purchase,40098,Communication and Computing,5028,CCTV maintenance,10/05/2019,0137619,869.25,Revenue,Technology Solutions,72376
Chorley Borough Council,http://statistics.data.gov.uk/id/local-authority/30UE,Central Support Services,1009,Business Development & Growth,Survey Expenses,40069,Services,5027,Further Ecological surveys and associated reports at shady Lane,10/05/2019,0137665,"1,840.00",Revenue,The Environment Partnership (TEP) Ltd,77359
Chorley Borough Council,http://statistics.data.gov.uk/id/local-authority/30UE,Central Support Services,1009,Customer & Digital,Consultants` Fees,40077,Services,5027,TNP professional services,10/05/2019,0137615,325.00,Revenue,The Networking People (NorthWest) Ltd T/a TNP Ltd,73446
Chorley Borough Council,http://statistics.data.gov.uk/id/local-authority/30UE,Democratic Represent and  Mgnt,1007,Policy & Governance,Printing of Year Book,40045,"Printing, Stationery & General",5026,Diary booklets 2019/2020 - x  120 as per quote E#11542,01/05/2019,0137503,933.40,Revenue,The Print Quarter,17987
Chorley Borough Council,http://statistics.data.gov.uk/id/local-authority/30UE,Unapportionable Central OHeads,1009,Policy & Governance,Processional Routes,40177,Miscellaneous Expenses,5034,300 x Order of Service booklets for Civic Sunday.,17/05/2019,0137974,275.70,Revenue,The Print Quarter,17987
Chorley Borough Council,http://statistics.data.gov.uk/id/local-authority/30UE,Economic Development,1096,Business Development & Growth,General Subscriptions,40146,Grants and Subscriptions,5031,Annual subscription for Covered Market traders to the TLG Chorley for period of 01.04.19 to 31.03.20. (invoice 0167).,10/05/2019,0137828,500.00,Revenue,Totally Locally Chorley,77188
Chorley Borough Council,http://statistics.data.gov.uk/id/local-authority/30UE,Economic Development,1096,Business Development & Growth,Miscellaneous Expenses,40200,Miscellaneous Expenses,5034,"Set up, manage upcycling point, Chorley Market as part of the British High Street Clean up. Stall L5 being the location.",24/05/2019,0138093,"3,700.00",Revenue,Totally Locally Chorley,77188
Chorley Borough Council,http://statistics.data.gov.uk/id/local-authority/30UE,Central Support Services,1009,Business Development & Growth,Professional Fees,40063,Services,5027,Order for alker Lane constraints plan,31/05/2019,0138102,400.00,Revenue,Trebbi Continuum,77723
Chorley Borough Council,http://statistics.data.gov.uk/id/local-authority/30UE,Business Support,1095,Business Development & Growth,External Contractor,40198,Miscellaneous Expenses,5034,"Seasonal Winter maintenance programme 2018/19 7 day service, sop,  all bank holidays except Christmas Day",10/05/2019,0137823,"4,210.00",Revenue,Trevelyan Hall Ltd t/a Litterboss,71709
Chorley Borough Council,http://statistics.data.gov.uk/id/local-authority/30UE,Unapportionable Central OHeads,1009,Policy & Governance,Miscellaneous Expenses,40200,Miscellaneous Expenses,5034,01-May-19,03/05/2019,0137605,"1,531.80",Revenue,UK Healthcare (BDHSC),17241
Chorley Borough Council,http://statistics.data.gov.uk/id/local-authority/30UE,Unapportionable Central OHeads,1009,Policy & Governance,Miscellaneous Expenses,40200,Miscellaneous Expenses,5034,01-Apr-19,03/05/2019,0137606,"1,512.80",Revenue,UK Healthcare (BDHSC),17241
Chorley Borough Council,http://statistics.data.gov.uk/id/local-authority/30UE,Unapportionable Central OHeads,1009,Policy & Governance,Exhibitions & Special Events,40158,Miscellaneous Expenses,5034,Face Painter for Chorley 10k,15/05/2019,0137919,370.00,Revenue,UK Media and Events Limited,71221
Chorley Borough Council,http://statistics.data.gov.uk/id/local-authority/30UE,Unapportionable Central OHeads,1009,Customer & Digital,Service Fees,40056,Services,5027,Daily hybrid mail & annual billing,01/05/2019,0137448,667.77,Revenue,UKMAIL Ltd (Mail),57758
Chorley Borough Council,http://statistics.data.gov.uk/id/local-authority/30UE,Unapportionable Central OHeads,1009,Customer & Digital,Service Fees,40056,Services,5027,Daily hybrid mail & annual billing,15/05/2019,0137617,"1,695.17",Revenue,UKMAIL Ltd (Mail),57758
Chorley Borough Council,http://statistics.data.gov.uk/id/local-authority/30UE,Unapportionable Central OHeads,1009,Customer & Digital,Service Fees,40056,Services,5027,Daily hybrid mail & annual billing,15/05/2019,0137802,"1,105.36",Revenue,UKMAIL Ltd (Mail),57758
Chorley Borough Council,http://statistics.data.gov.uk/id/local-authority/30UE,Unapportionable Central OHeads,1009,Customer & Digital,Service Fees,40056,Services,5027,Daily hybrid mail & annual billing,29/05/2019,0137973,567.44,Revenue,UKMAIL Ltd (Mail),57758
Chorley Borough Council,http://statistics.data.gov.uk/id/local-authority/30UE,Unapportionable Central OHeads,1009,Customer & Digital,Service Fees,40056,Services,5027,Daily hybrid mail & annual billing,29/05/2019,0138101,908.92,Revenue,UKMAIL Ltd (Mail),57758
Chorley Borough Council,http://statistics.data.gov.uk/id/local-authority/30UE,Control Accounts,Control,Policy & Governance,General Balances,00100,Balance Sheet,Balance,Monthly Deductions from Payroll,22/05/2019,0138083,"2,497.16",Revenue,Unify Credit Union Ltd,55509
Chorley Borough Council,http://statistics.data.gov.uk/id/local-authority/30UE,Central Support Services,1009,Customer & Digital,Telephones - Maintenance,40233,Communication and Computing,5028,"cover Mon-Fri 4 hr resp, exc hols period",10/05/2019,0132175,"5,174.04",Revenue,Unify Enterprise Communications,21179
Chorley Borough Council,http://statistics.data.gov.uk/id/local-authority/30UE,Central Support Services,1009,Business Development & Growth,Rent/Hire Of Premises,20017,Premises Rents,5007,Room hire for course provision April- July 2019,03/05/2019,0137604,480.00,Revenue,United Reformed Church,20885
Chorley Borough Council,http://statistics.data.gov.uk/id/local-authority/30UE,Parking Services,1066,Business Development & Growth,Rent/Hire Of Premises,20017,Premises Rents,5007,Rent of Hollinshead St Car Park April 2019 - March 2020,10/05/2019,0137768,937.50,Revenue,United Reformed Church,20885
Chorley Borough Council,http://statistics.data.gov.uk/id/local-authority/30UE,Capital,Capital,Policy & Governance,Grants,03002,Capital Expenditure,Capital,ADDRESS REDACTED,22/05/2019,0138010,"4,088.75",Capital,UPS Building and Maintenance Ltd,76235
Chorley Borough Council,http://statistics.data.gov.uk/id/local-authority/30UE,Capital,Capital,Early Intervention,Grants,03002,Capital Expenditure,Capital,ADDRESS REDACTED,22/05/2019,0138012,"4,018.25",Capital,UPS Building and Maintenance Ltd,76235
Chorley Borough Council,http://statistics.data.gov.uk/id/local-authority/30UE,Central Support Services,1009,Business Development & Growth,Consultants` Fees,40077,Services,5027,Asset Valuations for Chorley Borough Council for 2018-19 accounts,01/05/2019,0137471,"3,500.00",Revenue,Valuation Office Agency,17561
Chorley Borough Council,http://statistics.data.gov.uk/id/local-authority/30UE,Corporate Management,1008,Customer & Digital,Unitary Payment(S),50009,Private Contractors,5042,Provision of waste and recycling collection service and ancillary services for 2018/19.,10/05/2019,0136891,"283,978.53",Revenue,Veolia ES (UK) Ltd,20748
Chorley Borough Council,http://statistics.data.gov.uk/id/local-authority/30UE,Democratic Represent and  Mgnt,1007,Policy & Governance,Grants To Other Organisations,40127,Grants and Subscriptions,5031,cllr comm grant 2018/19,03/05/2019,0137673,250.00,Revenue,Village Cafe Clayton Brook,78020
Chorley Borough Council,http://statistics.data.gov.uk/id/local-authority/30UE,Central Support Services,1009,Customer & Digital,Internet Charges,40104,Communication and Computing,5028,usage,01/05/2019,0137424,898.75,Revenue,Virgin Media Payments Ltd,17632
Chorley Borough Council,http://statistics.data.gov.uk/id/local-authority/30UE,Central Support Services,1009,Customer & Digital,Internet Charges,40104,Communication and Computing,5028,rent,01/05/2019,0137424,663.26,Revenue,Virgin Media Payments Ltd,17632
Chorley Borough Council,http://statistics.data.gov.uk/id/local-authority/30UE,Central Support Services,1009,Customer & Digital,Internet Charges,40104,Communication and Computing,5028,adjustments,01/05/2019,0137424,146.27,Revenue,Virgin Media Payments Ltd,17632
Chorley Borough Council,http://statistics.data.gov.uk/id/local-authority/30UE,Central Support Services,1009,Customer & Digital,Internet Charges,40104,Communication and Computing,5028,data & spec serv charge,01/05/2019,0137424,1.75,Revenue,Virgin Media Payments Ltd,17632
Chorley Borough Council,http://statistics.data.gov.uk/id/local-authority/30UE,Central Support Services,1009,Customer & Digital,Internet Charges,40104,Communication and Computing,5028,16-May-19,29/05/2019,0138038,"1,470.38",Revenue,Virgin Media Payments Ltd,17632
Chorley Borough Council,http://statistics.data.gov.uk/id/local-authority/30UE,Democratic Represent and  Mgnt,1007,Policy & Governance,General Subscriptions,40146,Grants and Subscriptions,5031,2019/2020 Visit England VAQAS membership scheme. EMAIL REDACTED Operations Manager,01/05/2019,0137574,300.63,Revenue,Visit England,77399
Chorley Borough Council,http://statistics.data.gov.uk/id/local-authority/30UE,Central Support Services,1009,Customer & Digital,Computer Equipment - Security,40106,Communication and Computing,5028,01-Apr-19,01/05/2019,0137554,"3,182.43",Revenue,Vodafone Ltd,60180
Chorley Borough Council,http://statistics.data.gov.uk/id/local-authority/30UE,Central Support Services,1009,Policy & Governance,Car Leasing Payment,14100,Direct Employee Expenses,5001,"NAME REDACTED Audi A3 Sport back 35 TFSI S Line 5 Dr, Black, 3 years, 13000 miles/yr, 125 g/km, Hatchback",24/05/2019,0137470,"3,401.30",Revenue,VWFS UK Ltd T/A Volkswagen Group Leasing,56010
Chorley Borough Council,http://statistics.data.gov.uk/id/local-authority/30UE,Central Support Services,1009,Policy & Governance,Car Leasing Payment,14100,Direct Employee Expenses,5001,vat,24/05/2019,0137470,303.74,Revenue,VWFS UK Ltd T/A Volkswagen Group Leasing,56010
Chorley Borough Council,http://statistics.data.gov.uk/id/local-authority/30UE,Unapportionable Central OHeads,1009,Policy & Governance,Car Leasing Payment,14100,Direct Employee Expenses,5001,VIN REDACTED,24/05/2019,0138035,"1,088.60",Revenue,VWFS UK Ltd T/A Volkswagen Group Leasing,56010
Chorley Borough Council,http://statistics.data.gov.uk/id/local-authority/30UE,Unapportionable Central OHeads,1009,Policy & Governance,Car Leasing Payment,14100,Direct Employee Expenses,5001,vat,24/05/2019,0138035,97.62,Revenue,VWFS UK Ltd T/A Volkswagen Group Leasing,56010
Chorley Borough Council,http://statistics.data.gov.uk/id/local-authority/30UE,Unapportionable Central OHeads,1009,Business Development & Growth,Planned Maintenance,20006,Repairs Maintenance & Alts,5005,Service of town Hall fire and security equipment,17/05/2019,0137553,391.85,Revenue,Walker Fire (UK) Ltd,17092
Chorley Borough Council,http://statistics.data.gov.uk/id/local-authority/30UE,Parking Services,1066,Business Development & Growth,Water - Unmetered Supply,20023,Water Services,5009,1/4/19 to 31/3/20,03/05/2019,0137674,374.92,Revenue,Water-plus,17926
Chorley Borough Council,http://statistics.data.gov.uk/id/local-authority/30UE,Community Development,1097,Business Development & Growth,Water - Metered Supplies,20022,Water Services,5009,1/5/19 to 4/5/19,10/05/2019,0137814,308.84,Revenue,Water-plus,17926
Chorley Borough Council,http://statistics.data.gov.uk/id/local-authority/30UE,Tourism,1039,Policy & Governance,Publicity - Advertising,40157,Miscellaneous Expenses,5034,Budget coloured cotton shopper tote bag with long handles. Material weight between 3-4oz. Printed 2 sides 4 bag colours ,31/05/2019,0138230,398.00,Revenue,WeBrand4You,68716
Chorley Borough Council,http://statistics.data.gov.uk/id/local-authority/30UE,Unapportionable Central OHeads,1009,Chief Executive,Postages,40082,Communication and Computing,5028,"Mail collections for Union St and Town Hall, April `19 to March `20",01/05/2019,0137550,"1,007.20",Revenue,Whistl North Limited,67256
Chorley Borough Council,http://statistics.data.gov.uk/id/local-authority/30UE,Unapportionable Central OHeads,1009,Chief Executive,Postages,40082,Communication and Computing,5028,"Mail collections for Union St and Town Hall, April `19 to March `20",15/05/2019,0137911,565.32,Revenue,Whistl North Limited,67256
Chorley Borough Council,http://statistics.data.gov.uk/id/local-authority/30UE,Capital,Capital,Business Development & Growth,Other Expenses,03030,Capital Expenditure,Capital,"Works as tendered including erection of double vehicle barrier & posts, to be completed by end of February 2019.",24/05/2019,0138107,"12,400.74",Capital,William Pye Ltd,60564
Chorley Borough Council,http://statistics.data.gov.uk/id/local-authority/30UE,Planning Policy,1092,Business Development & Growth,Legal Fees,40171,Miscellaneous Expenses,5034,Brief on hearing for ADDRESS REDACTED,31/05/2019,0137962,640.00,Revenue,Wilson Horne,77750
Chorley Borough Council,http://statistics.data.gov.uk/id/local-authority/30UE,Planning Policy,1092,Business Development & Growth,Legal Fees,40171,Miscellaneous Expenses,5034,"Advising by telephone on ADDRESS REDACTED case, CBC vs NAME REDACTED",31/05/2019,0137962,575.00,Revenue,Wilson Horne,77750
Chorley Borough Council,http://statistics.data.gov.uk/id/local-authority/30UE,Central Support Services,1009,Business Development & Growth,Consultants` Fees,40077,Services,5027,Planning application Works for shady Lane,08/05/2019,0137695,"19,454.66",Revenue,WSP UK Ltd,77416
Chorley Borough Council,http://statistics.data.gov.uk/id/local-authority/30UE,Planning Policy,1092,Business Development & Growth,Professional Fees,40063,Services,5027,Highways and Transport Strategy for Chorley,22/05/2019,0137750,"2,500.00",Revenue,WYG Environment Planning Transport Limited,76236
Chorley Borough Council,http://statistics.data.gov.uk/id/local-authority/30UE,Planning Policy,1092,Business Development & Growth,Professional Fees,40063,Services,5027,Highways and Transport Strategy for Chorley,17/05/2019,0137961,"27,885.00",Revenue,WYG Environment Planning Transport Limited,76236
Chorley Borough Council,http://statistics.data.gov.uk/id/local-authority/30UE,Planning Policy,1092,Business Development & Growth,Professional Fees,40063,Services,5027,Highways and Transport Strategy for Chorley,17/05/2019,0137963,"6,600.00",Revenue,WYG Environment Planning Transport Limited,76236
Chorley Borough Council,http://statistics.data.gov.uk/id/local-authority/30UE,Democratic Represent and  Mgnt,1007,Policy & Governance,Conservation Of Exhibits,40059,Services,5027,"Stabilise Stucco Room bed 1922:171 Foot posts to workshop for repair. Materials - Softwood, screws and ply , Transport",29/05/2019,0138131,"3,322.00",Revenue,Wynn Griffiths & Tarr Limited Business,77085
